Workbook

Sheet INTRODUCTION
A1: PROJECT FINANCE MODELING
A3: PHILIPPE DUCHEMIN | D3: 2020-12-02
B7: TABLE
B8: ROAROE
B9: CALCULUS
B10: CALCULUS EX
B11: LOAN
B12: LOAN2
B13: LOAN2 EX
B14: AMORTIZATION
B15: ROCKY MOUNTAIN
B16: ROCKY MOUNTAIN PLUS

Sheet TABLE
A1: TABLES
B2: INPUT CELL | D2: =_xlfn.FORMULATEXT(D3) -> =B3^2 | E2: =_xlfn.FORMULATEXT(E3) -> =ACOS(B3/500) | F2: =LOG(B3) | G2: =1/B3
B3: 2 | D3: =B3^2 -> 4 | E3: =ACOS(B3/500) -> 1.566796316 | F3: =LOG(B3) -> 0.3010299957 | G3: =1/B3 -> 0.5
C4: 1 | D4: 1 | E4: 1.568796325 | F4: 0 | G4: 1
C5: 2 | D5: 4 | E5: 1.566796316 | F5: 0.3010299957 | G5: 0.5
C6: 3 | D6: 9 | E6: 1.564796291 | F6: 0.4771212547 | G6: 0.3333333333
C7: 4 | D7: 16 | E7: 1.562796241 | F7: 0.6020599913 | G7: 0.25
C8: 5 | D8: 25 | E8: 1.56079616 | F8: 0.6989700043 | G8: 0.2
C9: 6 | D9: 36 | E9: 1.558796039 | F9: 0.7781512504 | G9: 0.1666666667
C10: 7 | D10: 49 | E10: 1.556795869 | F10: 0.84509804 | G10: 0.1428571429
C11: 8 | D11: 64 | E11: 1.554795644 | F11: 0.903089987 | G11: 0.125
C12: 9 | D12: 81 | E12: 1.552795355 | F12: 0.9542425094 | G12: 0.1111111111
C13: 10 | D13: 100 | E13: 1.550794993 | F13: 1 | G13: 0.1
C14: 11 | D14: 121 | E14: 1.548794552 | F14: 1.041392685 | G14: 0.09090909091
D15: =_xlfn.FORMULATEXT(D14) -> {=TABLE(;B3)} | E15: =_xlfn.FORMULATEXT(E14) -> {=TABLE(;B3)} | F15: {=TABLE(;B3)} | G15: {=TABLE(;B3)}
B17: INPUT CELLS | C17: =_xlfn.FORMULATEXT(C18) -> =B18+B19*B19
A18: line | B18: 3 | C18: =B18+B19*B19 -> 7 | D18: 3 | E18: 5 | F18: 7 | G18: 15
A19: column | B19: 2 | C19: 2 | D19: 7 | E19: 9 | F19: 11 | G19: 19
C20: =C19+6 -> 8 | D20: 67 | E20: 69 | F20: 71 | G20: 79
C21: 14 | D21: 199 | E21: 201 | F21: 203 | G21: 211
C22: 20 | D22: 403 | E22: 405 | F22: 407 | G22: 415
C23: 26 | D23: 679 | E23: 681 | F23: 683 | G23: 691
C24: 32 | D24: 1027 | E24: 1029 | F24: 1031 | G24: 1039
C25: 38 | D25: 1447 | E25: 1449 | F25: 1451 | G25: 1459
C26: 44 | D26: 1939 | E26: 1941 | F26: 1943 | G26: 1951
C27: 50 | D27: 2503 | E27: 2505 | F27: 2507 | G27: 2515
C28: 56 | D28: 3139 | E28: 3141 | F28: 3143 | G28: 3151
C29: 62 | D29: 3847 | E29: 3849 | F29: 3851 | G29: 3859
D30: =_xlfn.FORMULATEXT(D29) -> {=TABLE(B18;B19)} | E30: =_xlfn.FORMULATEXT(E29) -> {=TABLE(B18;B19)} | F30: =_xlfn.FORMULATEXT(F29) -> {=TABLE(B18;B19)} | G30: =_xlfn.FORMULATEXT(G29) -> {=TABLE(B18;B19)}
B32: SCENARIO TABLE
B34: Scenario Number | C34: Inflation Rate | D34: Duration of Project | E34: Price of KWH | F34: Price Index | G34: Production | H34: Capacity Rate | I34: Redevance % de CA | J34: Tax %CA | K34: =_xlfn.FORMULATEXT(K35) -> =CSC | L34: IrrOperations | M34: Van Operations | N34: Value Operations | O34: PayBack Operations | P34: Irr Equity
K35: =CSC -> 2 | L35: =I46 -> 3270 | M35: =I47 -> 709 | N35: =I48 -> 30.01 | O35: =I49 -> 100 | P35: =I50 -> 0.0601
B36: 1 | C36: 0.01 | D36: 30 | E36: 110 | F36: 100 | G36: 500 | H36: 1 | I36: 0 | J36: 0.005 | K36: 1 | L36: 3300 | M36: 710 | N36: 30 | O36: 100 | P36: 0.0601
B37: 2 | C37: 0.01 | D37: =D36 -> 30 | E37: 109 | F37: 100 | G37: 500 | H37: 1 | I37: 0.01 | J37: 0.005 | K37: 2 | L37: 3270 | M37: 709 | N37: 30.01 | O37: 100 | P37: 0.0601
B38: 3 | C38: 0.01 | D38: =D37 -> 30 | E38: 108 | F38: 100 | G38: 500 | H38: 1 | I38: 0.02 | J38: 0.005 | K38: 3 | L38: 3240 | M38: 708 | N38: 30.02 | O38: 100 | P38: 0.0601
B39: 4 | C39: 0.01 | D39: 30 | E39: 107 | F39: 100 | G39: 500 | H39: 1 | I39: 0.03 | J39: 0.005 | K39: 4 | L39: 3210 | M39: 707 | N39: 30.03 | O39: 100 | P39: 0.0601
B40: 5 | C40: 0.01 | D40: 30 | E40: 106 | F40: 100 | G40: 500 | H40: 1 | I40: 0.04 | J40: 0.005 | K40: 5 | L40: 3180 | M40: 706 | N40: 30.04 | O40: 100 | P40: 0.0601
B44: SCENARIO | C44: 2
B46: INPUT | C46: 1 | D46: Inflation Rate | E46: =INDEX(TSC,CSC,C46) -> 0.01 | G46: OUTPUT | H46: IrrOperations | I46: =E47*E48 -> 3270
C47: 2 | D47: Duration of Project | E47: 30 | H47: Van Operations | I47: =E49+E50+E48 -> 709
C48: 3 | D48: Price of KWH | E48: 109 | H48: Value Operations | I48: =E47*E51+E52 -> 30.01
C49: 4 | D49: Price Index | E49: 100 | H49: PayBack Operations | I49: =E51/E46 -> 100
C50: 5 | D50: Production | E50: 500 | H50: Irr Equity | I50: =E46/100*(E49+E50+E51) -> 0.0601
C51: 6 | D51: Capacity Rate | E51: 1
C52: 7 | D52: Redevance % de CA | E52: 0.01 | H52: Value Equity | I52: =E51+E50 -> 501
C53: 8 | D53: Tax %CA | E53: 0.005 | H53: DSCR | I53: =I52/E48 -> 4.596330275
H54: LLCR | I54: =I53/E46 -> 459.6330275
C55: FX rate | E55: 5.4
C56: Cost of Coal | E56: 44
C57: Company Tax Rate | E57: 0.33

Sheet ROAROE
C3: French EUR | D3: Vietnam VND | E3: Vietnam USD
C4: billion | D4: billion | E4: billion
B5: ASSETS | C5: 7576 | D5: 12927000 | E5: =D5*1000/25000000 -> 517.08 | F5: (1)
B6: REVENUE | C6: 147 | F6: (2)
B7: PROFIT | C7: 25 | F7: (3)
B8: EQUITY | C8: 400 | D8: 1100000 | E8: =D8*1000/25000000 -> 44 | F8: (4)
B10: MARGIN | C10: =C6/C5 -> 0.01940337909 | F10: (1)/(2)
B11: ROA | C11: =C7/C5 -> 0.003299894403 | E11: 0.0051 | F11: (1)/(3)
B12: DEBT RATIO | C12: =(C5-C8)/C5 -> 0.9472016895 | F12: (1)/(4)
B13: ROE | C13: =C7/C8 -> 0.0625 | E13: 0.0627 | F13: (3)/(4)
B14: https://www.sbv.gov.vn/webcenter/portal/en/home/sbv/statistic/ooci/ksr?_afrLoop=5884292371000297#%40%3F_afrLoop%3D5884292371000297%26centerWidth%3D80%2525%26leftWidth%3D20%2525%26rightWidth%3D0%2525%26showFooter%3Dfalse%26showHeader%3Dfalse%26_adf.ctrl-state%3Dfnyrtp4pw_562

Sheet CALCULUS
A1: FINANCIAL CALCULUS
D2: Arguments
B3: 1 | C3: FV | D3: cash | E3: years | F3: rate
B4: 2 | C4: PV | D4: cash | E4: years | F4: rate
B5: 3 | C5: NPV | D5: cash list | E5: rate
B6: 4 | C6: XNPV | D6: cash list | E6: date list | F6: rate
B7: 5 | C7: FVSCHEDULE | D7: cash | E7: rate list
B8: 6 | C8: IRR | D8: cash list
B9: 7 | C9: XIRR | D9: cash list | E9: date list
A11: 1 | B11: FUTURE VALUE CONSTANT CASH FLOW
C12: 1000 USD duraing 4 years, with 10% annual interest rate
C14: Cash | D14: 1000
C15: Years | D15: 4
C16: Rate | D16: 0.1
C18: FV | D18: =FV(D16,D15,D14) -> -4641 | E18: =forme(D18) -> =FV(D16,D15,D14)
D20: years | E20: flows | F20: cash | G20: interest | H20: total
C21: Control | D21: 1 | E21: =D14 -> 1000 | F21: =E21 -> 1000 | G21: =F21*$D$16 -> 100 | H21: =F21+G21 -> 1100
D22: 2 | E22: =E21 -> 1000 | F22: =H21+E22 -> 2100 | G22: =F22*$D$16 -> 210 | H22: =F22+G22 -> 2310
D23: 3 | E23: =E22 -> 1000 | F23: =H22+E23 -> 3310 | G23: 331 | H23: 3641
D24: 4 | E24: 1000 | F24: 4641 | G24: 464.1 | H24: 5105.1
A26: 2 | B26: PRESENT VALUE
C27: Deposit 150 USD during 6 years, with annual interest capitalized at 4%
C29: Cash | D29: 150
C30: Years | D30: 6
C31: Rate | D31: 0.04
C33: PV | D33: =PV(D31,D30,D29) -> -786.3205285 | E33: =forme(D33) -> =PV(D31,D30,D29) | H33: =forme(D33) -> =PV(D31,D30,D29)
C35: Controls | D35: years | F35: DF | G35: Present Cash Flow
C36: Flows | D36: 0 | E36: =D28 -> 0 | F36: =POWER(1+$D$31,-D36) -> 1
D37: 1 | E37: =D29 -> 150 | F37: =POWER(1+$D$31,-D37) -> 0.9615384615 | G37: =F37*E37 -> 144.2307692
D38: 2 | E38: =E37 -> 150 | F38: 0.924556213 | G38: 138.683432
D39: 3 | E39: =E38 -> 150 | F39: 0.8889963587 | G39: 133.3494538
D40: 4 | E40: =E39 -> 150 | F40: 0.854804191 | G40: 128.2206287
D41: 5 | E41: =E40 -> 150 | F41: 0.8219271068 | G41: 123.289066
D42: 6 | E42: =E41 -> 150 | F42: 0.7903145257 | G42: 118.5471789
G43: =SUM(G37:G42) -> 786.3205285
A45: 3 | B45: PRESENT VALUE wifh DIFFERENT FLOWS
C46: Cash amounts are 1000, 500, 1500 and 3000 at the beginning of each year, with a cash account with annual rate of 3%
C48: Rate | D48: 0.03
E50: Cash Flows | F50: DF | G50: Present Cash Flow
D51: 0 | F51: =POWER(1+$D$34,-D51) -> 1
D52: 1 | E52: 1000 | F52: =POWER(1+$D$48,-D52) -> 0.9708737864 | G52: =F52*E52 -> 970.8737864
D53: 2 | E53: -500 | F53: =POWER(1+$D$48,-D53) -> 0.9425959091 | G53: -471.2979546
D54: 3 | E54: -1500 | F54: 0.9151416594 | G54: -1372.712489
D55: 4 | E55: 3000 | F55: 0.8884870479 | G55: 2665.461144
G56: =SUM(G51:G55) -> 1792.324487
C57: NPV | D57: =NPV(D48,E52:E55) -> 1792.324487 | E57: =forme(D57) -> =NPV(D48,E52:E55)
A59: 4 | B59: PRESENT VALUE with DATES
C60: Cash amounts are 150, 200, 200,250 and 400 at the beginning of each year, with a cash account with annual rate of 5%
C62: Rate | D62: 0.05
C64: years | D64: cash | E64: days | G64: dates | H64: DF | J64: DF cash flows
C65: 1 | D65: 150 | E65: today | F65: 0 | G65: =TODAY() -> 2020-12-01 | H65: 1 | I65: 365 | J65: =H65*D65 -> 150 | K65: =forme(H65) -> 1
C66: 2 | D66: 200 | E66: 25 | F66: =F65+E66 -> 25 | G66: =G65+E66 -> 2020-12-26 | H66: =POWER(1+$D$62,-F66/I66) -> 0.9966637855 | I66: =I65 -> 365 | J66: =H66*D66 -> 199.3327571 | K66: =forme(H66) -> =POWER(1+$D$62,-F66/I66)
C67: 3 | D67: 200 | E67: 65 | F67: =F66+E67 -> 90 | G67: =G66+E67 -> 2021-03-01 | H67: =POWER(1+$D$62,-F67/I67) -> 0.9880416251 | I67: =I66 -> 365 | J67: =H67*D67 -> 197.608325 | K67: =forme(H67) -> =POWER(1+$D$62,-F67/I67)
C68: 4 | D68: 250 | E68: 33 | F68: 123 | G68: =G67+E68 -> 2021-04-03 | H68: 0.9836928087 | I68: 365 | J68: =H68*D68 -> 245.9232022 | K68: =forme(H68) -> =POWER(1+$D$62,-F68/I68)
C69: 5 | D69: 400 | E69: 44 | F69: 167 | G69: =G68+E69 -> 2021-05-17 | H69: 0.9779241473 | I69: 365 | J69: =H69*D69 -> 391.1696589 | K69: =POWER(1+$D$62,-F69/I69)
J70: =SUM(J65:J69) -> 1184.033943
C71: XNPV | D71: =XNPV(D62,D65:D69,G65:G69) -> 1184.033943 | E71: =forme(D71) -> =XNPV(D62,D65:D69,G65:G69)
A73: 5 | B73: FUTURE VALUE with DATES
C74: Cash amounts are 150, 200, 200,250 and 400 at the beginning of each year, with a cash account with annual rate of 5%
C76: Rate | D76: 2000
C78: years | D78: cash | E78: =+D76 -> 2000
C79: 1 | D79: 0.05 | E79: =E78*(1+D79) -> 2100 | F79: =forme(E79) -> =E78*(1+D79)
C80: 2 | D80: 0.04 | E80: =E79*(1+D80) -> 2184 | F80: =forme(E80) -> =E79*(1+D80)
C81: 3 | D81: 0.03 | E81: 2249.52 | F81: =E80*(1+D81)
C82: 4 | D82: 0.05 | E82: 2361.996 | F82: =E81*(1+D82)
C83: 5 | D83: 0.04 | E83: 2456.47584 | F83: =E82*(1+D83)
C85: FVSCHEDULE | D85: =FVSCHEDULE(D76,D79:D83) -> 2456.47584 | E85: =forme(D85) -> =FVSCHEDULE(D76,D79:D83)
A87: 6 | B87: INTERNAL RATE RETURN
F88: =+D96 -> 0.01255229514 | I88: =D97 -> 0.1624720395
C89: DATES | D89: CASH FLOWS | G89: Monthly | H89: Days | J89: Daily
C90: 2020-02-01 | D90: -12000 | E90: 0 | F90: =POWER((1+$F$88),-E90) -> 1 | G90: =D90*F90 -> -12000 | H90: =C90-$C$90 -> 0 | I90: =POWER((1+$I$88),-(H90/365)) -> 1 | J90: =D90*I90 -> -12000
C91: 2020-03-01 | D91: 200 | E91: 1 | F91: =POWER((1+$F$88),-E91) -> 0.9876033117 | G91: =D91*F91 -> 197.5206623 | H91: =C91-$C$90 -> 29 | I91: =POWER((1+$I$88),-(H91/365)) -> 0.9881098413 | J91: =D91*I91 -> 197.6219683
C92: 2020-04-01 | D92: 300 | E92: 2 | F92: =POWER((1+$F$88),-E92) -> 0.9753603014 | G92: 292.6080904 | H92: =C92-$C$90 -> 60 | I92: =POWER((1+$I$88),-(H92/365)) -> 0.975555966 | J92: 292.6667898
C93: 2020-05-01 | D93: -100 | E93: 3 | F93: =POWER((1+$F$88),-E93) -> 0.9632690638 | G93: -96.32690638 | H93: =C93-$C$90 -> 90 | I93: =POWER((1+$I$88),-(H93/365)) -> 0.9635589369 | J93: -96.35589369
C94: 2020-06-01 | D94: 12200 | E94: 4 | F94: =POWER((1+$F$88),-E94) -> 0.9513277175 | G94: 11606.19815 | H94: =C94-$C$90 -> 121 | I94: =POWER((1+$I$88),-(H94/365)) -> 0.9513169793 | J94: 11606.06715
G95: =SUM(G90:G94) -> -7.009657566e-08 | J95: =SUM(J90:J94) -> 1.210528899e-05
C96: IRR | D96: =IRR(D90:D94) -> 0.01255229514 | E96: =forme(D96) -> =IRR(D90:D94)
C97: XIRR | D97: =XIRR(D90:D94,C90:C94) -> 0.1624720395 | E97: =forme(D97) -> =XIRR(D90:D94,C90:C94)
E98: =forme(D98) -> 
D99: =D96*12 -> 0.1506275417 | E99: =D96*12
D100: =(1+D96)^12-1 -> 0.1614741511 | E100: =(1+D96)^12-1
D102: =NPV(D96,D90:D94) -> -6.923120314e-08 | E102: =NPV(D96,D90:D94)
D103: =XNPV(D97,D90:D94,C90:C94) -> 1.210528899e-05 | E103: =forme(D103) -> =XNPV(D97,D90:D94,C90:C94)
A105: 7 | B105: MODIFIED INTERNAL RATE RETURN
G106: PAY BACK | J106: 0.03 | K106: 0.05 | L106: DF Flows | M106: DF Flows
C107: DATES | D107: IN FLOWS | E107: OUT FLOWS | G107: SUM | H107: DF SUM | I107: DF | J107: =1/(1+J106) -> 0.9708737864 | K107: =1/(1+K106) -> 0.9523809524
C108: 2020-01-01 | D108: -12000 | E108: 0 | F108: =D108+E108 -> -12000 | G108: =D108+E108 -> -12000 | H108: =F108*J108 -> -12000 | I108: 0 | J108: =POWER((1+$J$106),-I108) -> 1 | K108: =POWER((1+$K$106),-I108) -> 1 | L108: =J108*D108 -> -12000 | M108: =K108*E108 -> 0
C109: 2021-01-01 | D109: -10000 | E109: 0 | F109: =D109+E109 -> -10000 | G109: =G108+D109+E109 -> -22000 | H109: =H108+F109*J109 -> -21708.73786 | I109: 1 | J109: 0.9708737864 | K109: 0.9523809524 | L109: -9708.737864 | M109: 0
C110: 2022-01-01 | D110: -5000 | E110: 5000 | F110: 0 | G110: =G109+D110+E110 -> -22000 | H110: =H109+F110*J110 -> -21708.73786 | I110: 2 | J110: 0.9425959091 | K110: 0.9070294785 | L110: -4712.979546 | M110: 4535.147392
C111: 2023-01-01 | D111: -3000 | E111: 6000 | F111: 3000 | G111: -19000 | H111: -18963.31289 | I111: 3 | J111: 0.9151416594 | K111: 0.8638375985 | L111: -2745.424978 | M111: 5183.025591
C112: 2024-01-01 | D112: 0 | E112: 7000 | F112: 7000 | G112: -12000 | H112: -12743.90355 | I112: 4 | J112: 0.8884870479 | K112: 0.8227024748 | L112: 0 | M112: 5758.917324
C113: 2025-01-01 | D113: 0 | E113: 7000 | F113: 7000 | G113: -5000 | H113: -6705.64206 | I113: 5 | J113: 0.8626087844 | K113: 0.7835261665 | L113: 0 | M113: 5484.683165
C114: 2026-01-01 | D114: 0 | E114: 8000 | F114: 8000 | G114: 3000 | H114: -5.76800645 | I114: 6 | J114: 0.8374842567 | K114: 0.7462153966 | L114: 0 | M114: 5969.723173
C115: 2027-01-01 | D115: 0 | E115: 8000 | F115: 8000 | G115: 11000 | H115: 6498.964084 | I115: 7 | J115: 0.8130915113 | K115: 0.7106813301 | L115: 0 | M115: 5685.450641
C116: 2028-01-01 | D116: 0 | E116: 10000 | F116: 10000 | G116: 21000 | H116: 14393.05643 | I116: 8 | J116: 0.7894092343 | K116: 0.676839362 | L116: 0 | M116: 6768.39362
C117: 2029-01-01 | D117: 0 | E117: 10000 | F117: 10000 | G117: 31000 | H117: 22057.22375 | I117: 9 | J117: 0.7664167323 | K117: 0.6446089162 | L117: 0 | M117: 6446.089162
C118: 2030-01-01 | D118: 0 | E118: 10000 | F118: 10000 | G118: 41000 | H118: 29498.1629 | I118: 10 | J118: 0.7440939149 | K118: 0.6139132535 | L118: 0 | M118: 6139.132535
D119: =SUM(D108:D118) -> -30000 | E119: =SUM(E108:E118) -> 71000 | F119: =SUM(F108:F118) -> 41000 | L119: =SUM(L108:L118) -> -29167.14239 | M119: =SUM(M108:M118) -> 51970.5626 | N119: =L119+M119 -> 22803.42022
L120: =-L119 -> 29167.14239 | M120: =M119/K118 -> 84654.57018 | N120: =M120/L120 -> 2.902395067
D121: =D119+E119 -> 41000 | E121: =forme(D121) -> =D119+E119
C122: IRR | D122: =IRR(F108:F118) -> 0.1831297348 | E122: =forme(D122) -> =IRR(F108:F118) | K122: PI | L122: =-M119/L119 -> 1.781818798 | M122: =forme(L122) -> =-M119/L119
D123: 0.05 | E123: 0.08 | L123: =LN(M120/L120)/I118 -> 0.1065536281 | M123: =LN(M120/L120)/I118
C124: NPV | D124: =NPV(D123,D108:D118) -> -27286.16163 | E124: =forme(D124) -> =NPV(D123,D108:D118) | L124: =EXP(L123) -> 1.112437583 | M124: =EXP(L123)
C125: NPV | D125: =NPV(E123,E108:E118) -> 40467.93747 | E125: =NPV(E123,E108:E118) | K125: MIRR | L125: =L124-1 -> 0.1124375828 | M125: =L124-1
C126: NPV | D126: =NPV(D123,F108:F118) -> 22209.61228 | E126: =NPV(D123,F108:F118)
D127: =D126/J107 -> 22875.90065 | E127: =D126/J107 | L127: =(1+L125)^I118 -> 2.902395067
A129: 8 | B129: PROJECT EVALUATION
B131: PROJECT A | C131: YEARS | D131: IN FLOWS | F131: IRR | G131: =IRR(D132:D136) -> 0.1448884428
C132: 1 | D132: -1000 | F132: rate | G132: 0.1
C133: 2 | D133: 500 | F133: NPV | G133: =NPV(G132,D132:D136)*(1+G132) -> 78.81975275
C134: 3 | D134: 400 | F134: CASH IN PRES | G134: =NPV(G132,D133:D136) -> 1078.819753 | H134: =G134*(1+G132)^4 -> 1579.5 | I134: PI | J134: =-G136 -> 1.078819753
C135: 4 | D135: 300 | F135: CASH OUT | G135: =D132 -> -1000 | H135: =G135 -> -1000 | I135: MIRR | J135: =EXP(LN(-H136)/4) -> 1.121062712
C136: 5 | D136: 100 | F136: ratio | G136: =G134/G135 -> -1.078819753 | H136: =H134/H135 -> -1.5795 | J136: =J135-1 -> 0.1210627119
B138: PROJECT B | C138: YEARS | D138: IN FLOWS | F138: IRR | G138: =IRR(D139:D143) -> 0.1179055563
C139: 1 | D139: -1000 | F139: rate | G139: 0.1
C140: 2 | D140: 100 | F140: NPV | G140: =NPV(G139,D139:D143)*(1+G139) -> 49.17696879
C141: 3 | D141: 300 | F141: CASH IN PRES | G141: =NPV(G139,D140:D143) -> 1049.176969 | H141: =G141*(1+G139)^4 -> 1536.1 | I141: PI | J141: =-G143 -> 1.049176969
C142: 4 | D142: 400 | E142: MIRR | F142: CASH OUT | G142: =D139 -> -1000 | H142: =G142 -> -1000 | I142: MIRR | J142: =EXP(LN(-H143)/4) -> 1.113281193
C143: 5 | D143: 600 | F143: ratio | G143: =G141/G142 -> -1.049176969 | H143: =H141/H142 -> -1.5361 | J143: =J142-1 -> 0.1132811926
B145: PROJECT A-B | C145: YEARS | D145: IN FLOWS | F145: IRR | G145: =IRR(D146:D150) -> 0.07167279978
C146: 1 | D146: =D132-D139 -> 0 | F146: rate | G146: 0.1
C147: 2 | D147: =D133-D140 -> 400 | F147: NPV | G147: =NPV(G146,D146:D150)*(1+G146) -> 29.64278396
C148: 3 | D148: 100 | F148: CASH IN PRES | G148: =NPV(G146,D147:D150) -> 29.64278396 | H148: =G148*(1+G146)^4 -> 43.4 | I148: PI
C149: 4 | D149: -100 | E149: MIRR | F149: CASH OUT | G149: =D146 -> 0 | H149: =G149 -> 0 | I149: MIRR
C150: 5 | D150: -500 | F150: ratio
A152: 9 | B152: PROJECT EVALUATION
C154: Project | D154: 0 | E154: 1 | F154: 2 | G154: 3 | H154: NPV | I154: IRR | J154: SUM | K154: RATE
C155: A | D155: -100 | E155: 50 | F155: 100 | G155: 500 | H155: =NPV(K155,D155:G155)*(1+K155) -> 380.2523688 | I155: =IRR(D155:G155) -> 1.104332777 | J155: =SUM(D155:G155) -> 550 | K155: 0.12
C156: B | D156: -200 | E156: 600 | F156: 100 | G156: 50 | H156: 451.0226859 | I156: 2.181835604 | J156: 550 | K156: 0.12
C157: C | D157: -300 | E157: 100 | F157: 700 | G157: 100 | H157: 418.4994534 | I157: 0.7635764841 | J157: 600 | K157: 0.12
C158: A+B | D158: -300 | E158: 650 | F158: 200 | G158: 550 | H158: 831.2750547 | I158: 1.672740583 | J158: 1100 | K158: 0.12
C159: B+C | D159: -500 | E159: 700 | F159: 800 | G159: 150 | H159: 869.5221392 | I159: 1.192261698 | J159: 1150 | K159: 0.12
C160: A+C | D160: -400 | E160: 150 | F160: 800 | G160: 600 | H160: 798.7518222 | I160: 0.87170977 | J160: 1150 | K160: 0.12
A162: 10 | B162: EAC
C164: Project A | D164: Project B | H164: Project C | I164: Project D
C165: -30 | D165: -40 | H165: -1000 | I165: -3000
C166: -10 | D166: 10 | H166: -18000 | I166: -12000
C167: =C166 -> -10 | D167: =D166 -> 10 | H167: =H166 -> -18000 | I167: =I166 -> -12000
C168: =C167 -> -10 | D168: =D167 -> 10 | I168: =I167 -> -12000
C169: 15 | D169: 10 | I169: -12000
D170: 10
D171: 15
B173: DURATION | C173: 5 | D173: 7 | G173: =B173 -> DURATION | H173: 3 | I173: 5
B174: Rate | C174: 0.1 | D174: 0.1 | G174: =B174 -> Rate | H174: 0.1 | I174: 0.1
B175: NPV | C175: =NPV(C174,C165:C169)*(1+C174) -> -44.62331808 | D175: =NPV(D174,D165:D171)*(1+D174) -> 6.374976645 | E175: =_xlfn.FORMULATEXT(D175) -> =VAN(D174;D165:D171)*(1+D174) | G175: NPV | H175: =NPV(H174,H165:H167)*(1+H174) -> -32239.66942 | I175: =NPV(I174,I165:I169)*(1+I174) -> -41038.38536
B176: EAC | C176: =-PMT(C174,C173,C175) -> -11.77151889 | D176: =-PMT(D174,D173,D175) -> 1.309455263 | E176: =-VPM(D174;D173;D175) | G176: EAC | H176: =-PMT(H174,H173,H175) -> -12964.04834 | I176: =-PMT(I174,I173,I175) -> -10825.82267
B178: control | C178: =C174/(1-(1+C174)^(-C173)) -> 0.2637974808 | D178: =D174/(1-(1+D174)^(-D173)) -> 0.2054054997 | E178: =D174/(1-(1+D174)^(-D173)) | H178: =H174/(1-(1+H174)^(-H173)) -> 0.4021148036 | I178: =I174/(1-(1+I174)^(-I173)) -> 0.2637974808
B179: control | C179: =C178*C175 -> -11.77151889 | D179: =D178*D175 -> 1.309455263 | E179: =D178*D175 | H179: =H178*H175 -> -12964.04834 | I179: =I178*I175 -> -10825.82267

Sheet CALCULUS EX
A1: FINANCIAL CALCULUS EX
D2: Arguments
B3: 1 | C3: FV | D3: cash | E3: years | F3: rate
B4: 2 | C4: PV | D4: cash | E4: years | F4: rate
B5: 3 | C5: NPV | D5: cash list | E5: rate
B6: 4 | C6: XNPV | D6: cash list | E6: date list | F6: rate
B7: 5 | C7: FVSCHEDULE | D7: cash | E7: rate list
B8: 6 | C8: IRR | D8: cash list
B9: 7 | C9: XIRR | D9: cash list | E9: date list
A11: 1 | B11: FUTURE VALUE CONSTANT CASH FLOW
C12: 1000 USD duraing 4 years, with 10% annual interest rate
C14: Cash | D14: 1000
C15: Years | D15: 4
C16: Rate | D16: 0.1
C18: FV | E18: =forme(D18) -> 
D20: years | E20: flows | F20: cash | G20: interest | H20: total
C21: Control | D21: 1 | E21: =D14 -> 1000
D22: 2 | E22: =E21 -> 1000
D23: 3 | E23: =E22 -> 1000
D24: 4 | E24: 1000
A26: 2 | B26: PRESENT VALUE
C27: Deposit 150 USD during 6 years, with annual interest capitalized at 4%
C29: Cash | D29: 150
C30: Years | D30: 6
C31: Rate | D31: 0.04
C33: PV | E33: =forme(D33) ->  | H33: =forme(D33) -> 
C35: Controls | D35: years | F35: DF | G35: Present Cash Flow
C36: Flows | D36: 0 | E36: =D28 -> 0
D37: 1 | E37: =D29 -> 150
D38: 2 | E38: =E37 -> 150
D39: 3 | E39: =E38 -> 150
D40: 4 | E40: =E39 -> 150
D41: 5 | E41: =E40 -> 150
D42: 6 | E42: =E41 -> 150
G43: =SUM(G37:G42) -> 0
A45: 3 | B45: PRESENT VALUE wifh DIFFERENT FLOWS
C46: Cash amounts are 1000, 500, 1500 and 3000 at the beginning of each year, with a cash account with annual rate of 3%
C48: Rate | D48: 0.03
E50: Cash Flows | F50: DF | G50: Present Cash Flow
D51: 0 | F51: =POWER(1+$D$34,-D51) -> 1
D52: 1 | E52: 1000
D53: 2 | E53: -500
D54: 3 | E54: -1500
D55: 4 | E55: 3000
G56: =SUM(G51:G55) -> 0
C57: NPV | E57: =forme(D57) -> 
A59: 4 | B59: PRESENT VALUE with DATES
C60: Cash amounts are 150, 200, 200,250 and 400 at the beginning of each year, with a cash account with annual rate of 5%
C62: Rate | D62: 0.05
C64: years | D64: cash | E64: days | G64: dates | H64: DF | J64: DF cash flows
C65: 1 | D65: 150 | E65: today | F65: 0 | G65: =TODAY() -> 2020-12-01 | K65: =forme(H65) -> 
C66: 2 | D66: 200 | E66: 25 | F66: =F65+E66 -> 25 | G66: =G65+E66 -> 2020-12-26 | K66: =forme(H66) -> 
C67: 3 | D67: 200 | E67: 65 | F67: =F66+E67 -> 90 | G67: =G66+E67 -> 2021-03-01 | K67: =forme(H67) -> 
C68: 4 | D68: 250 | E68: 33 | F68: 123 | G68: =G67+E68 -> 2021-04-03 | K68: =forme(H68) -> 
C69: 5 | D69: 400 | E69: 44 | F69: 167 | G69: =G68+E69 -> 2021-05-17
J70: =SUM(J65:J69) -> 0
C71: XNPV | E71: =forme(D71) -> 
A73: 5 | B73: FUTURE VALUE with DATES
C74: Cash amounts are 150, 200, 200,250 and 400 at the beginning of each year, with a cash account with annual rate of 5%
C76: Rate | D76: 2000
C78: years | D78: cash | E78: =+D76 -> 2000
C79: 1 | D79: 0.05 | F79: =forme(E79) -> 
C80: 2 | D80: 0.04 | F80: =forme(E80) -> 
C81: 3 | D81: 0.03
C82: 4 | D82: 0.05
C83: 5 | D83: 0.04
C85: FVSCHEDULE | E85: =forme(D85) -> 
A87: 6 | B87: INTERNAL RATE RETURN
F88: =+D96 -> 0 | I88: =D97 -> 0
C89: DATES | D89: CASH FLOWS | G89: Monthly | H89: Days | J89: Daily
C90: 2020-02-01 | D90: -12000 | E90: 0 | H90: =C90-$C$90 -> 0
C91: 2020-03-01 | D91: 200 | E91: 1 | H91: =C91-$C$90 -> 29
C92: 2020-04-01 | D92: 300 | E92: 2 | H92: =C92-$C$90 -> 60
C93: 2020-05-01 | D93: -100 | E93: 3 | H93: =C93-$C$90 -> 90
C94: 2020-06-01 | D94: 12200 | E94: 4 | H94: =C94-$C$90 -> 121
G95: =SUM(G90:G94) -> 0 | J95: =SUM(J90:J94) -> 0
C96: IRR | E96: =forme(D96) -> 
C97: XIRR | E97: =forme(D97) -> 
E98: =forme(D98) -> 
D99: =D96*12 -> 0 | E99: =D96*12
D100: =(1+D96)^12-1 -> 0 | E100: =(1+D96)^12-1
D102: =NPV(D96,D90:D94) -> 600 | E102: =forme(D102) -> =NPV(D96,D90:D94)
D103: =XNPV(D97,D90:D94,C90:C94) ->  | E103: =XNPV(D97,D90:D94,C90:C94)
A105: 7 | B105: MODIFIED INTERNAL RATE RETURN
G106: PAY BACK | J106: 0.03 | K106: 0.05 | L106: DF Flows | M106: DF Flows
C107: DATES | D107: IN FLOWS | E107: OUT FLOWS | G107: SUM | H107: DF SUM | I107: DF | J107: =1/(1+J106) -> 0.9708737864 | K107: =1/(1+K106) -> 0.9523809524
C108: 2020-01-01 | D108: -12000 | E108: 0 | F108: =D108+E108 -> -12000 | I108: 0
C109: 2021-01-01 | D109: -10000 | E109: 0 | F109: =D109+E109 -> -10000 | I109: 1
C110: 2022-01-01 | D110: -5000 | E110: 5000 | F110: 0 | I110: 2
C111: 2023-01-01 | D111: -3000 | E111: 6000 | F111: 3000 | I111: 3
C112: 2024-01-01 | D112: 0 | E112: 7000 | F112: 7000 | I112: 4
C113: 2025-01-01 | D113: 0 | E113: 7000 | F113: 7000 | I113: 5
C114: 2026-01-01 | D114: 0 | E114: 8000 | F114: 8000 | I114: 6
C115: 2027-01-01 | D115: 0 | E115: 8000 | F115: 8000 | I115: 7
C116: 2028-01-01 | D116: 0 | E116: 10000 | F116: 10000 | I116: 8
C117: 2029-01-01 | D117: 0 | E117: 10000 | F117: 10000 | I117: 9
C118: 2030-01-01 | D118: 0 | E118: 10000 | F118: 10000 | I118: 10
D119: =SUM(D108:D118) -> -30000 | E119: =SUM(E108:E118) -> 71000 | F119: =SUM(F108:F118) -> 41000 | L119: =SUM(L108:L118) -> 0 | M119: =SUM(M108:M118) -> 0 | N119: =L119+M119 -> 0
L120: =-L119 -> 0 | M120: =M119/K118 ->  | N120: =M120/L120 -> 
D121: =D119+E119 -> 41000 | E121: =forme(D121) -> =D119+E119
C122: IRR | E122: =forme(D122) ->  | K122: PI | M122: =forme(L122) -> 
D123: 0.05 | E123: 0.08
C124: NPV | E124: =forme(D124) -> 
C125: NPV | K125: MIRR
C126: NPV
D127: =D126/J107 -> 0 | E127: =D126/J107 | L127: =(1+L125)^I118 -> 1
A129: 8 | B129: PROJECT EVALUATION
B131: PROJECT A | C131: YEARS | D131: IN FLOWS | F131: IRR
C132: 1 | D132: -1000 | F132: rate
C133: 2 | D133: 500 | F133: NPV
C134: 3 | D134: 400 | F134: CASH IN PRES | I134: PI
C135: 4 | D135: 300 | F135: CASH OUT | I135: MIRR
C136: 5 | D136: 100 | F136: ratio
B138: PROJECT B | C138: YEARS | D138: IN FLOWS | F138: IRR
C139: 1 | D139: -1000 | F139: rate
C140: 2 | D140: 100 | F140: NPV
C141: 3 | D141: 300 | F141: CASH IN PRES | H141: =G141*(1+G139)^4 -> 0 | I141: PI
C142: 4 | D142: 400 | E142: MIRR | F142: CASH OUT | H142: =G142 -> 0 | I142: MIRR
C143: 5 | D143: 600 | F143: ratio | H143: =H141/H142 -> 
B145: PROJECT A-B | C145: YEARS | D145: IN FLOWS | F145: IRR
C146: 1 | D146: =D132-D139 -> 0 | F146: rate
C147: 2 | D147: =D133-D140 -> 400 | F147: NPV
C148: 3 | D148: 100 | F148: CASH IN PRES | H148: =G148*(1+G146)^4 -> 0 | I148: PI
C149: 4 | D149: -100 | E149: MIRR | F149: CASH OUT | H149: =G149 -> 0 | I149: MIRR
C150: 5 | D150: -500 | F150: ratio
A152: 9 | B152: PROJECT EVALUATION
C154: Project | D154: 0 | E154: 1 | F154: 2 | G154: 3 | H154: NPV | I154: IRR | J154: SUM | K154: RATE
C155: A | D155: -100 | E155: 50 | F155: 100 | G155: 500
C156: B | D156: -200 | E156: 600 | F156: 100 | G156: 50
C157: C | D157: -300 | E157: 100 | F157: 700 | G157: 100
C158: A+B | D158: -300 | E158: 650 | F158: 200 | G158: 550
C159: B+C | D159: -500 | E159: 700 | F159: 800 | G159: 150
C160: A+C | D160: -400 | E160: 150 | F160: 800 | G160: 600

Sheet LOAN
A1: LOAN
B3: Functions about LOAN
B4: PMT | D4: =PMT(D14,D13,D12) -> -11723.05066 | E4: =forme(D4) -> =PMT(D14,D13,D12) | G4: rate | H4: years | I4: amount | J4: future val | K4: type
B5: NPER | D5: =NPER(D14,D16,D12) -> 10 | E5: =NPER(D14,D16,D12) | G5: rate | H5: annuity | I5: amount | J5: future val | K5: type
B6: RATE | D6: =RATE(D13,D16,D12) -> 0.03 | E6: =RATE(D13,D16,D12) | G6: duration | H6: annuity | I6: amount | J6: future val | K6: type
B7: IPMT | C7: 2 | D7: =IPMT(D14,C7,D13,D12) -> -2738.30848 | E7: =IPMT(D14,C7,D13,D12) | G7: rate | H7: rank | I7: duration | J7: amount | K7: future val | L7: type
B8: PPMT | C8: 2 | D8: =PPMT(D14,C8,D13,D12) -> -8984.74218 | E8: =PPMT(D14,C8,D13,D12) | G8: rate | H8: rank | I8: duration | J8: amount | K8: future val | L8: type
B9: FV | D9: =FV(D14,-D13,D16) -> -100000 | E9: =FV(D14,-D13,D16) | G9: rate | H9: years | I9: annuity | J9: present val | K9: type
B10: PV | D10: =PV(D14,D13,-D16) -> -100000 | E10: =PV(D14,D13,-D16) | G10: rate | H10: years | I10: annuity | J10: future val | K10: type
C12: Amount | D12: 100000 | E12: usd
C13: Duration | D13: 10 | E13: years
C14: Rate | D14: 0.03 | E14: per year
C15: Period | D15: 1 | E15: annual
C16: Annuity | D16: =PMT(D14,D13,D12) -> -11723.05066 | E16: =forme(D16) -> =PMT(D14,D13,D12)
B18: TABLE CURRENT CURRENCY | G18: TABLE CONSTANT CURRENCY | N18: DF INV
B19: OUTSTANDING | C19: INTEREST | D19: AMORTIZATION | E19: ANNUITY | F19: DF | G19: =B19 -> OUTSTANDING | H19: =C19 -> INTEREST | I19: AMORTIZATION | J19: ANNUITY | K19: =A30 -> 11 | M19: SUM DF | N19: =POWER(1+$D$14,-K19) -> 0.7224212766 | O19: CRD | P19: INT | Q19: AMO
A20: 1 | B20: =D12 -> 100000 | C20: =B20*$D$14 -> 3000 | D20: =E20-C20 -> 8723.050661 | E20: =-D16 -> 11723.05066 | F20: =POWER(1+$D$14,-A20) -> 0.9708737864 | G20: =B20*$F20 -> 97087.37864 | H20: =C20*$F20 -> 2912.621359 | I20: =D20*$F20 -> 8468.981224 | J20: 11381.60258 | K20: =K19-1 -> 10 | L20: =-PMT($D$14,A20,$D$12) -> 103000 | M20: =F20 -> 0.9708737864 | N20: 0.7440939149 | S20: =(1-(1+$D$14)^(-K20)) -> 0.2559060851
A21: 2 | B21: =B20-D20 -> 91276.94934 | C21: =B21*$D$14 -> 2738.30848 | D21: =E21-C21 -> 8984.74218 | E21: =E20 -> 11723.05066 | F21: 0.9425959091 | G21: =B21*$F21 -> 86037.27905 | H21: =C21*$F21 -> 2581.118371 | I21: =D21*$F21 -> 8468.981224 | J21: =E21*$F21 -> 11050.0996 | K21: =K20-1 -> 9 | L21: 52261.08374 | M21: =M20+F21 -> 1.913469696 | N21: 0.7664167323 | O21: =B21/B20 -> 0.9127694934 | P21: =C21/C20 -> 0.9127694934 | Q21: =D21/D20 -> 1.03 | R21: =C21/E21 -> 0.2335832677 | S21: 0.2335832677
A22: 3 | B22: 82292.20716 | C22: 2468.766215 | D22: =E22-C22 -> 9254.284446 | E22: 11723.05066 | F22: 0.9151416594 | G22: 75309.02701 | H22: 2259.27081 | I22: 8468.981224 | J22: 10728.25203 | K22: 8 | L22: 35353.03633 | M22: 2.828611355 | N22: 0.7894092343 | O22: 0.901566143 | P22: 0.901566143 | Q22: 1.03 | R22: 0.2105907657 | S22: 0.2105907657
A23: 4 | B23: 73037.92271 | C23: 2191.137681 | D23: 9531.912979 | E23: 11723.05066 | F23: 0.8884870479 | G23: 64893.24834 | H23: 1946.79745 | I23: 8468.981224 | J23: 10415.77867 | K23: 7 | L23: 26902.70452 | M23: 3.717098403 | N23: 0.8130915113 | O23: 0.8875436112 | P23: 0.8875436112 | Q23: 1.03 | R23: 0.1869084887 | S23: 0.1869084887
A24: 5 | B24: 63506.00973 | C24: 1905.180292 | D24: 9817.870368 | E24: 11723.05066 | F24: 0.8626087844 | G24: 54780.84186 | H24: 1643.425256 | I24: 8468.981224 | J24: 10112.40648 | K24: 6 | L24: 21835.45714 | M24: 4.579707187 | N24: 0.8374842567 | O24: 0.8694936462 | P24: 0.8694936462 | Q24: 1.03 | R24: 0.1625157433 | S24: 0.1625157433
A25: 6 | B25: 53688.13937 | C25: 1610.644181 | D25: 10112.40648 | E25: 11723.05066 | F25: 0.8374842567 | G25: 44962.97149 | H25: 1348.889145 | I25: 8468.981224 | J25: 9817.870368 | K25: 5 | L25: 18459.75005 | M25: 5.417191444 | N25: 0.8626087844 | O25: 0.8454024995 | P25: 0.8454024995 | Q25: 1.03 | R25: 0.1373912156 | S25: 0.1373912156
A26: 7 | B26: 43575.73289 | C26: 1307.271987 | D26: 10415.77867 | E26: 11723.05066 | F26: 0.8130915113 | G26: 35431.05851 | H26: 1062.931755 | I26: 8468.981224 | J26: 9531.912979 | K26: 4 | L26: 16050.63538 | M26: 6.230282955 | N26: 0.8884870479 | O26: 0.8116454286 | P26: 0.8116454286 | Q26: 1.03 | R26: 0.1115129521 | S26: 0.1115129521
A27: 8 | B27: 33159.95421 | C27: 994.7986264 | D27: 10728.25203 | E27: 11723.05066 | F27: 0.7894092343 | G27: 26176.77406 | H27: 785.3032219 | I27: 8468.981224 | J27: 9254.284446 | K27: 3 | L27: 14245.63888 | M27: 7.01969219 | N27: 0.9151416594 | O27: 0.7609729548 | P27: 0.7609729548 | Q27: 1.03 | R27: 0.08485834065 | S27: 0.08485834065
A28: 9 | B28: 22431.70218 | C28: 672.9510653 | D28: 11050.0996 | E28: 11723.05066 | F28: 0.7664167323 | G28: 17192.03188 | H28: 515.7609565 | I28: 8468.981224 | J28: 8984.74218 | K28: 2 | L28: 12843.3857 | M28: 7.786108922 | N28: 0.9425959091 | O28: 0.6764696367 | P28: 0.6764696367 | Q28: 1.03 | R28: 0.05740409087 | S28: 0.05740409087
A29: 10 | B29: 11381.60258 | C29: 341.4480775 | D29: 11381.60258 | E29: 11723.05066 | F29: 0.7440939149 | G29: 8468.981224 | H29: 254.0694367 | I29: 8468.981224 | J29: 8723.050661 | K29: 1 | L29: 11723.05066 | M29: 8.530202837 | N29: 0.9708737864 | O29: 0.5073891626 | P29: 0.5073891626 | Q29: 1.03 | R29: 0.02912621359 | S29: 0.02912621359
A30: 11 | F30: 0.7224212766 | J30: 0
A31: TOTAL | B31: =SUM(B20:B30) -> 574350.2202 | C31: =SUM(C20:C30) -> 17230.50661 | D31: =SUM(D20:D30) -> 100000 | E31: =SUM(E20:E30) -> 117230.5066 | F31: =SUM(F20:F29) -> 8.530202837 | G31: =SUM(G20:G30) -> 510339.5921 | H31: 15310.18776 | I31: 84689.81224 | J31: 100000
I32: =E31*F30 -> 84689.81224 | J32: =forme(I32) -> =E31*F30
B34: a | C34: 1-(1+rate)^(-n) | E34: =1-(1+D14)^(-D13) -> 0.2559060851 | F34: =forme(E34) -> =1-(1+D14)^(-D13)
C35: Tx An | E35: =D14*F31 -> 0.2559060851 | F35: =forme(E35) -> =D14*F31
C36: (1-Dn) | E36: =(1-F29) -> 0.2559060851 | F36: =forme(E36) -> =(1-F29)
B37: b | C37: (1+rate)^(n)-1 | E37: =(1+D14)^(D13)-1 -> 0.3439163793 | F37: =forme(E37) -> =(1+D14)^(D13)-1
B40: FIRST FUNDAMENTAL FORM
B41: annuity | C41: A = C t / a | E41: =D12*D14/E34 -> 11723.05066 | F41: =forme(E41) -> =D12*D14/E34
B42: SECOND FUNDAMENTAL FORM
B43: Cost of Loan = Cost for the Bank | E43: =J31-I31 -> 15310.18776 | F43: =forme(E43) -> =J31-I31
B44: THIRD FUNDAMENTAL FORM
B45: Rate | C45: (1-Dn)/An | E45: =(1-F29)/F31 -> 0.03 | F45: =forme(E45) -> =(1-F29)/F31
B46: Rate | C46: npv(oc)/npv(i) | E46: =H31/G31 -> 0.03 | F46: =forme(E46) -> =H31/G31

Sheet LOAN2
A1: LOANS CALCULUS
A3: 1 | B3: CONSTANT ANNUITY
C4: Loan of 100 000 usd over 10 years
C5: Calculate annual and monthly payment, term expired and term due
C6: Calculate total interest and total repayment
C7: Calculate the cost of the loan
C9: annual | F9: monthly
B10: Rate | C10: 0.03 | D10: =C10 -> 0.03 | F10: =D10/12 -> 0.0025 | G10: =F10 -> 0.0025
B11: Number of Periods | C11: 10 | D11: =C11 -> 10 | F11: =D11*12 -> 120 | G11: =F11 -> 120
B12: Capital | C12: 100000 | D12: 100000 | F12: 100000 | G12: 100000
B13: Type | C13: 0 | D13: 1 | F13: 0 | G13: 1
B15: ECHEANCE | C15: =PMT(C10,C11,C12,C13) -> -11723.05066 | D15: =PMT(D10,D11,D12,D13) -> -11723.13789 | F15: =PMT(F10,F11,F12,F13) -> -965.607447 | G15: =PMT(G10,G11,G12,G13) -> -965.6146031
B17: Total repayment | C17: =C15*C11 -> -117230.5066 | D17: =D15*D11 -> -117231.3789 | F17: =F15*F11 -> -115872.8936 | G17: =G15*G11 -> -115873.7524
B18: Interest | C18: =C17+C12 -> -17230.50661 | D18: =D17+D12 -> -17231.37891 | F18: =F17+F12 -> -15872.89364 | G18: =G17+G12 -> -15873.75237
B19: DF n+1 | C19: =POWER(1+C10,-(1+C11)) -> 0.7224212766 | D19: =POWER(1+D10,-(1+D11)) -> 0.7224212766 | F19: =POWER(1+F10,-(1+F11)) -> 0.7392474985 | G19: =POWER(1+G10,-(1+G11)) -> 0.7392474985
B20: Cost of Loan | C20: =C12+C17*C19 -> 15310.18776 | D20: =D12+D17*D19 -> 15309.55759 | F20: =F12+F17*F19 -> 14341.25323 | G20: 14340.61842
A22: 2 | B22: SCHEDULE
C23: Rate | D23: =C10 -> 0.03
C24: Years | D24: =+C11 -> 10
C25: Capital | D25: =+C12 -> 100000
B27: TABLE IN CURRENT CURRENCY | G27: TABLE IN CONSTANT CURRENCY
B28: OC | C28: INTEREST | D28: CAPITAL | E28: ANNUITY | F28: DF | G28: OC | H28: INTEREST | I28: CAPITAL | J28: ANNUITY
A29: 1 | B29: =+D25 -> 100000 | C29: =B29*$D$23 -> 3000 | D29: =E29-C29 -> 8723.050661 | E29: =-C15 -> 11723.05066 | F29: =POWER(1+$D$23,-A29) -> 0.9708737864 | G29: =B29*$F29 -> 97087.37864 | H29: =C29*$F29 -> 2912.621359 | I29: =D29*$F29 -> 8468.981224 | J29: =E29*$F29 -> 11381.60258
A30: 2 | B30: =B29-D29 -> 91276.94934 | C30: =B30*$D$23 -> 2738.30848 | D30: =E30-C30 -> 8984.74218 | E30: =E29 -> 11723.05066 | F30: 0.9425959091 | G30: 86037.27905 | H30: 2581.118371 | I30: 8468.981224 | J30: 11050.0996
A31: 3 | B31: =B30-D30 -> 82292.20716 | C31: 2468.766215 | D31: 9254.284446 | E31: =E30 -> 11723.05066 | F31: 0.9151416594 | G31: 75309.02701 | H31: 2259.27081 | I31: 8468.981224 | J31: 10728.25203
A32: 4 | B32: 73037.92271 | C32: 2191.137681 | D32: 9531.912979 | E32: 11723.05066 | F32: 0.8884870479 | G32: 64893.24834 | H32: 1946.79745 | I32: 8468.981224 | J32: 10415.77867
A33: 5 | B33: 63506.00973 | C33: 1905.180292 | D33: 9817.870368 | E33: 11723.05066 | F33: 0.8626087844 | G33: 54780.84186 | H33: 1643.425256 | I33: 8468.981224 | J33: 10112.40648
A34: 6 | B34: 53688.13937 | C34: 1610.644181 | D34: 10112.40648 | E34: 11723.05066 | F34: 0.8374842567 | G34: 44962.97149 | H34: 1348.889145 | I34: 8468.981224 | J34: 9817.870368
A35: 7 | B35: 43575.73289 | C35: 1307.271987 | D35: 10415.77867 | E35: 11723.05066 | F35: 0.8130915113 | G35: 35431.05851 | H35: 1062.931755 | I35: 8468.981224 | J35: 9531.912979
A36: 8 | B36: 33159.95421 | C36: 994.7986264 | D36: 10728.25203 | E36: 11723.05066 | F36: 0.7894092343 | G36: 26176.77406 | H36: 785.3032219 | I36: 8468.981224 | J36: 9254.284446
A37: 9 | B37: 22431.70218 | C37: 672.9510653 | D37: 11050.0996 | E37: 11723.05066 | F37: 0.7664167323 | G37: 17192.03188 | H37: 515.7609565 | I37: 8468.981224 | J37: 8984.74218
A38: 10 | B38: 11381.60258 | C38: 341.4480775 | D38: 11381.60258 | E38: 11723.05066 | F38: 0.7440939149 | G38: 8468.981224 | H38: 254.0694367 | I38: 8468.981224 | J38: 8723.050661
A39: 11 | B39: 0 | F39: 0.7224212766 | G39: =G38-I38 -> 0
B40: TOTAL | C40: =SUM(C29:C38) -> 17230.50661 | D40: =SUM(D29:D38) -> 100000 | E40: 117230.5066 | F40: =SUM(F29:F38) -> 8.530202837 | G40: =SUM(G29:G38) -> 510339.5921 | H40: =SUM(H29:H38) -> 15310.18776 | I40: =SUM(I29:I38) -> 84689.81224 | J40: =SUM(J29:J38) -> 100000
G41: COST | H41: =D40-E40*F39 -> 15310.18776 | I41: =forme(H41) -> =D40-E40*F39
C42: Controls with NPV | G42: COST | H42: =G40*D23 -> 15310.18776 | I42: =forme(H42) -> =G40*D23
C43: NPV | D43: =NPV(D23,E29:E38) -> 100000 | E43: =forme(D43) -> =NPV(D23,E29:E38)
C44: PV | D44: =PV(D23,D24,-E29) -> 100000 | E44: =forme(D44) -> =PV(D23,D24,-E29)
A46: 3 | B46: SCHEDULE WITH CONSTANT AMORTIZATION
C47: Rate | D47: 0.03
C48: Years | D48: 10
C49: Period | D49: annual
C50: Capital | D50: 100000
B52: OC | C52: INTEREST | D52: CAPITAL | E52: ANNUITY | G52: DF | H52: INT DF
A53: 1 | B53: =D50 -> 100000 | C53: =B53*$D$47 -> 3000 | D53: =B53/D48 -> 10000 | E53: =C53+D53 -> 13000 | G53: =POWER(1+$D$23,-A53) -> 0.9708737864 | H53: =G53*C53 -> 2912.621359
A54: 2 | B54: =B53-D53 -> 90000 | C54: 2700 | D54: =D53 -> 10000 | E54: =C54+D54 -> 12700 | G54: =POWER(1+$D$23,-A54) -> 0.9425959091 | H54: =G54*C54 -> 2545.008955
A55: 3 | B55: =B54-D54 -> 80000 | C55: 2400 | D55: =D54 -> 10000 | E55: 12400 | G55: 0.9151416594 | H55: 2196.339982
A56: 4 | B56: 70000 | C56: 2100 | D56: 10000 | E56: 12100 | G56: 0.8884870479 | H56: 1865.822801
A57: 5 | B57: 60000 | C57: 1800 | D57: 10000 | E57: 11800 | G57: 0.8626087844 | H57: 1552.695812
A58: 6 | B58: 50000 | C58: 1500 | D58: 10000 | E58: 11500 | G58: 0.8374842567 | H58: 1256.226385
A59: 7 | B59: 40000 | C59: 1200 | D59: 10000 | E59: 11200 | G59: 0.8130915113 | H59: 975.7098136
A60: 8 | B60: 30000 | C60: 900 | D60: 10000 | E60: 10900 | G60: 0.7894092343 | H60: 710.4683109
A61: 9 | B61: 20000 | C61: 600 | D61: 10000 | E61: 10600 | G61: 0.7664167323 | H61: 459.8500394
A62: 10 | B62: 10000 | C62: 300 | D62: 10000 | E62: 10300 | G62: 0.7440939149 | H62: 223.2281745
B63: 0
B64: TOTAL | C64: =SUM(C53:C62) -> 16500 | D64: 100000 | E64: 116500 | G64: =SUM(G53:G62) -> 8.530202837 | H64: 14697.97163
C66: Controls with NPV
C67: NPV | D67: =NPV(D47,E53:E62) -> 100000 | E67: =forme(D67) -> =NPV(D47,E53:E62)
D68: =SUMPRODUCT(E53:E62,G53:G62) -> 100000 | E68: =forme(D68) -> =SUMPRODUCT(E53:E62,G53:G62)
C69: COST | D69: =NPV(D47,C53:C62) -> 14697.97163 | E69: =forme(D69) -> =NPV(D47,C53:C62)
A71: 4 | B71: DIFFERED PAYMENT
C72: Loan over 10 years, with the 4 first years without payment
C73: Rate | D73: 0.03
E75: =PMT(D73,A86-A80,B81) -> -20776.61131 | F75: =forme(E75) -> =PMT(D73,A86-A80,B81)
B76: OC | C76: INTEREST | D76: CAPITAL | E76: ANNUITY
A77: 1 | B77: 100000 | C77: =B77*$D$73 -> 3000 | D77: =E77-C77 -> -3000 | E77: 0
A78: 2 | B78: =B77-D77 -> 103000 | C78: =B78*$D$73 -> 3090 | D78: =E78-C78 -> -3090 | E78: =E77 -> 0
A79: 3 | B79: =B78-D78 -> 106090 | C79: 3182.7 | D79: -3182.7 | E79: =E78 -> 0
A80: 4 | B80: 109272.7 | C80: 3278.181 | D80: -3278.181 | E80: 0
A81: 5 | B81: 112550.881 | C81: 3376.52643 | D81: 17400.08488 | E81: =-E75 -> 20776.61131
A82: 6 | B82: 95150.79612 | C82: 2854.523884 | D82: 17922.08742 | E82: =E81 -> 20776.61131
A83: 7 | B83: 77228.7087 | C83: 2316.861261 | D83: 18459.75005 | E83: =E82 -> 20776.61131
A84: 8 | B84: 58768.95866 | C84: 1763.06876 | D84: 19013.54255 | E84: 20776.61131
A85: 9 | B85: 39755.41611 | C85: 1192.662483 | D85: 19583.94882 | E85: 20776.61131
A86: 10 | B86: 20171.46729 | C86: 605.1440186 | D86: 20171.46729 | E86: 20776.61131
B87: 0
A89: 5 | B89: DIFFERED PAYMENT
C90: Loan over 10 years, with the 4 first years payment of interest only
C92: Rate | D92: 0.03
E94: =PMT(D92,A105-A99,B100) -> -18459.75005
B95: OC | C95: INTEREST | D95: CAPITAL | E95: ANNUITY
A96: 1 | B96: 100000 | C96: =B96*$D$73 -> 3000 | D96: =E96-C96 -> 0 | E96: =C96 -> 3000
A97: 2 | B97: =B96-D96 -> 100000 | C97: =B97*$D$73 -> 3000 | D97: =E97-C97 -> 0 | E97: =C97 -> 3000
A98: 3 | B98: =B97-D97 -> 100000 | C98: 3000 | D98: 0 | E98: 3000
A99: 4 | B99: 100000 | C99: 3000 | D99: 0 | E99: 3000
A100: 5 | B100: 100000 | C100: 3000 | D100: 15459.75005 | E100: =-E94 -> 18459.75005
A101: 6 | B101: 84540.24995 | C101: 2536.207499 | D101: 15923.54255 | E101: =E100 -> 18459.75005
A102: 7 | B102: 68616.70741 | C102: 2058.501222 | D102: 16401.24882 | E102: =E101 -> 18459.75005
A103: 8 | B103: 52215.45859 | C103: 1566.463758 | D103: 16893.28629 | E103: 18459.75005
A104: 9 | B104: 35322.1723 | C104: 1059.665169 | D104: 17400.08488 | E104: 18459.75005
A105: 10 | B105: 17922.08742 | C105: 537.6626227 | D105: 17922.08742 | E105: 18459.75005
B106: 0
A108: 6 | B108: LOAN WITH INCREASING ANNUITY
C109: Loan with quaterly payments increasing of 20% each year
C111: Capital | D111: 100000
C112: Years | D112: 4 | E112: years
C113: Period | D113: quaterly
C114: Rate | D114: 0.04
C115: Annual Increase | D115: 0.2
B117: OC | C117: INTEREST | D117: CAPITAL | E117: INSTALLMENT
A118: 1 | B118: 100000 | C118: =B118*$D$114/4 -> 1000 | D118: =E118-C118 -> 4108.758362 | E118: 5108.758362
A119: 2 | B119: =B118-D118 -> 95891.24164 | C119: 958.9124164 | D119: =E119-C119 -> 4149.845946 | E119: =E118 -> 5108.758362
A120: 3 | B120: =B119-D119 -> 91741.39569 | C120: 917.4139569 | D120: 4191.344406 | E120: =E119 -> 5108.758362
A121: 4 | B121: 87550.05129 | C121: 875.5005129 | D121: 4233.25785 | E121: 5108.758362
A122: 5 | B122: 83316.79344 | C122: 833.1679344 | D122: 5297.342101 | E122: =E121*(1+$D$115) -> 6130.510035
A123: 6 | B123: 78019.45134 | C123: 780.1945134 | D123: 5350.315522 | E123: 6130.510035
A124: 7 | B124: 72669.13581 | C124: 726.6913581 | D124: 5403.818677 | E124: 6130.510035
A125: 8 | B125: 67265.31714 | C125: 672.6531714 | D125: 5457.856864 | E125: 6130.510035
A126: 9 | B126: 61807.46027 | C126: 618.0746027 | D126: 6738.537439 | E126: =E125*(1+$D$115) -> 7356.612042
A127: 10 | B127: 55068.92283 | C127: 550.6892283 | D127: 6805.922814 | E127: 7356.612042
A128: 11 | B128: 48263.00002 | C128: 482.6300002 | D128: 6873.982042 | E128: 7356.612042
A129: 12 | B129: 41389.01798 | C129: 413.8901798 | D129: 6942.721862 | E129: 7356.612042
A130: 13 | B130: 34446.29612 | C130: 344.4629612 | D130: 8483.471489 | E130: =E129*(1+$D$115) -> 8827.93445
A131: 14 | B131: 25962.82463 | C131: 259.6282463 | D131: 8568.306204 | E131: 8827.93445
A132: 15 | B132: 17394.51842 | C132: 173.9451842 | D132: 8653.989266 | E132: 8827.93445
A133: 16 | B133: 8740.529159 | C133: 87.40529159 | D133: 8740.529159 | E133: =E132 -> 8827.93445
B134: 0 | C134: =SUM(C118:C133) -> 9695.259558 | D134: =SUM(D118:D133) -> 100000 | E134: =SUM(E118:E133) -> 109695.2596
A136: 7 | B136: LOAN WITH MULTIPLE ISSUES
C137: Rate | D137: 0.03
B138: First Solution With Annuity
B139: Flows | C139: OC | D139: INTEREST | E139: CAPITAL | F139: ANNUITY
A140: 10 | B140: 100000 | C140: =B140 -> 100000 | D140: =C140*$D$137 -> 3000 | E140: =F140-D140 -> 8723.050661 | F140: =-PMT($D$137,A140,C140) -> 11723.05066 | G140: =forme(F140) -> =-PMT($D$137,A140,C140)
A141: 9 | B141: 50000 | C141: =C140+B141-E140 -> 141276.9493 | D141: 4238.30848 | E141: =F141-D141 -> 13906.43503 | F141: 18144.74351 | G141: =forme(F141) -> =-PMT($D$137,A141,C141)
A142: 8 | B142: 20000 | C142: =C141+B142-E141 -> 147370.5143 | D142: 4421.115429 | E142: 16572.75586 | F142: 20993.87129 | G142: =-PMT($D$137,A142,C142)
A143: 7 | B143: 10000 | C143: 140797.7584 | D143: 4223.932753 | E143: 18375.00207 | F143: 22598.93483 | G143: =-PMT($D$137,A143,C143)
A144: 6 | C144: 122422.7564 | D144: 3672.682691 | E144: 18926.25213 | F144: 22598.93483 | G144: =-PMT($D$137,A144,C144)
A145: 5 | C145: 103496.5042 | D145: 3104.895127 | E145: 19494.0397 | F145: 22598.93483 | G145: =-PMT($D$137,A145,C145)
A146: 4 | C146: 84002.46455 | D146: 2520.073936 | E146: 20078.86089 | F146: 22598.93483 | G146: =-PMT($D$137,A146,C146)
A147: 3 | C147: 63923.60366 | D147: 1917.70811 | E147: 20681.22672 | F147: 22598.93483 | G147: =-PMT($D$137,A147,C147)
A148: 2 | C148: 43242.37694 | D148: 1297.271308 | E148: 21301.66352 | F148: 22598.93483 | G148: =-PMT($D$137,A148,C148)
A149: 1 | C149: 21940.71342 | D149: 658.2214027 | E149: 21940.71342 | F149: 22598.93483 | G149: =-PMT($D$137,A149,C149)
A150: 0 | C150: 0
C151: TOTAL | D151: =SUM(D140:D149) -> 29054.20924 | E151: =SUM(E140:E149) -> 180000 | F151: 209054.2092
B152: Second Solution With Capital
B153: Flows | C153: OC | D153: INTEREST | E153: CAPITAL | F153: ANNUITY
A154: 10 | B154: 100000 | C154: =B154 -> 100000 | D154: =C154*$D$137 -> 3000 | E154: =(C154*$D$137)/((1+$D$137)^A154-1) -> 8723.050661 | F154: =D154+E154 -> 11723.05066 | G154: =forme(E154) -> =(C154*$D$137)/((1+$D$137)^A154-1)
A155: 9 | B155: 50000 | C155: =C154+B155-E154 -> 141276.9493 | D155: 4238.30848 | E155: =(C155*$D$137)/((1+$D$137)^A155-1) -> 13906.43503 | F155: =D155+E155 -> 18144.74351 | G155: =forme(E155) -> =(C155*$D$137)/((1+$D$137)^A155-1)
A156: 8 | B156: 20000 | C156: =C155+B156-E155 -> 147370.5143 | D156: 4421.115429 | E156: 16572.75586 | F156: 20993.87129 | G156: =(C156*$D$137)/((1+$D$137)^A156-1)
A157: 7 | B157: 10000 | C157: 140797.7584 | D157: 4223.932753 | E157: 18375.00207 | F157: 22598.93483 | G157: =(C157*$D$137)/((1+$D$137)^A157-1)
A158: 6 | C158: 122422.7564 | D158: 3672.682691 | E158: 18926.25213 | F158: 22598.93483 | G158: =(C158*$D$137)/((1+$D$137)^A158-1)
A159: 5 | C159: 103496.5042 | D159: 3104.895127 | E159: 19494.0397 | F159: 22598.93483 | G159: =(C159*$D$137)/((1+$D$137)^A159-1)
A160: 4 | C160: 84002.46455 | D160: 2520.073936 | E160: 20078.86089 | F160: 22598.93483 | G160: =(C160*$D$137)/((1+$D$137)^A160-1)
A161: 3 | C161: 63923.60366 | D161: 1917.70811 | E161: 20681.22672 | F161: 22598.93483 | G161: =(C161*$D$137)/((1+$D$137)^A161-1)
A162: 2 | C162: 43242.37694 | D162: 1297.271308 | E162: 21301.66352 | F162: 22598.93483 | G162: =(C162*$D$137)/((1+$D$137)^A162-1)
A163: 1 | C163: 21940.71342 | D163: 658.2214027 | E163: 21940.71342 | F163: 22598.93483 | G163: =(C163*$D$137)/((1+$D$137)^A163-1)
A164: 0 | C164: 0
C165: TOTAL | D165: =SUM(D154:D163) -> 29054.20924 | E165: =SUM(E154:E163) -> 180000 | F165: 209054.2092
A167: 8 | B167: Table Single Entry: Rate
C168: Capital | D168: 100000
C169: Years | D169: 5
C170: Period | D170: annual
C171: Rate | D171: 0.04
C173: Payment | D173: Sum of Interest | E173: Cost
C174: =-PMT(D171,D169,D168) -> 22462.71135 | D174: =C174*D169-D168 -> 12313.55675 | E174: =D168-D169*C174/(1+D171)^(D169+1) -> 11236.96467
B175: 0.02 | C175: 21215.83941 | D175: 6079.197052 | E175: 5804.708772
B176: =B175+0.004 -> 0.024 | C176: 21462.76232 | D176: 7313.81159 | E176: 6920.105869
B177: =B176+0.004 -> 0.028 | C177: 21710.91877 | D177: 8554.593855 | E177: 8020.823098
B178: 0.032 | C178: 21960.30097 | D178: 9801.504848 | E178: 9107.068945
B179: 0.036 | C179: 22210.9011 | D179: 11054.50551 | E179: 10179.04873
B180: 0.04 | C180: 22462.71135 | D180: 12313.55675 | E180: 11236.96467
B181: 0.044 | C181: 22715.72388 | D181: 13578.6194 | E181: 12281.0159
B182: 0.048 | C182: 22969.93086 | D182: 14849.65428 | E182: 13311.39858
B183: 0.052 | C183: 23225.32444 | D183: 16126.6222 | E183: 14328.30589
A185: 9 | B185: Table with Double Entry: rate and duration
C186: Capital | D186: 100000
C187: Period | D187: annual
C188: Rate | D188: 0.04
C189: Years | D189: 3 | E189: years
B191: =-PMT(D188,D189,D186) -> 36034.85392 | C191: 1 | D191: 2 | E191: 3 | F191: 4 | G191: 5
B192: =B175 -> 0.02 | C192: 102000 | D192: 51504.9505 | E192: 34675.46726 | F192: 26262.37527 | G192: 21215.83941
B193: =B176 -> 0.024 | C193: 102400 | D193: 51807.11462 | E193: 34945.98096 | F193: 26517.78456 | G193: 21462.76232
B194: 0.028 | C194: 102800 | D194: 52109.66469 | E194: 35217.18059 | F194: 26774.15805 | G194: 21710.91877
B195: 0.032 | C195: 103200 | D195: 52412.59843 | E195: 35489.06202 | F195: 27031.48982 | G195: 21960.30097
B196: 0.036 | C196: 103600 | D196: 52715.91356 | E196: 35761.62115 | F196: 27289.77394 | G196: 22210.9011
B197: 0.04 | C197: 104000 | D197: 53019.60784 | E197: 36034.85392 | F197: 27549.00454 | G197: 22462.71135
B198: 0.044 | C198: 104400 | D198: 53323.67906 | E198: 36308.75627 | F198: 27809.17572 | G198: 22715.72388
B199: 0.048 | C199: 104800 | D199: 53628.125 | E199: 36583.32418 | F199: 28070.28162 | G199: 22969.93086
B200: 0.052 | C200: 105200 | D200: 53932.94347 | E200: 36858.55363 | F200: 28332.31639 | G200: 23225.32444

Sheet LOAN2 EX
A1: LOANS CALCULUS EX
A3: 1 | B3: CONSTANT ANNUITY
C4: Loan of 100 000 usd over 10 years
C5: Calculate annual and monthly payment, term expired and term due
C6: Calculate total interest and total repayment
C7: Calculate the cost of the loan
C9: annual | F9: monthly
B10: Rate | C10: 0.03 | D10: =C10 -> 0.03 | F10: =D10/12 -> 0.0025 | G10: =F10 -> 0.0025
B11: Number of Periods | C11: 10 | D11: =C11 -> 10 | F11: =D11*12 -> 120 | G11: =F11 -> 120
B12: Capital | C12: 100000 | D12: 100000 | F12: 100000 | G12: 100000
B13: Type | C13: 0 | D13: 1 | F13: 0 | G13: 1
B15: ECHEANCE | C15: =PMT(C10,C11,C12,C13) -> -11723.05066 | D15: =PMT(D10,D11,D12,D13) -> -11723.13789 | F15: =PMT(F10,F11,F12,F13) -> -965.607447 | G15: =PMT(G10,G11,G12,G13) -> -965.6146031
B17: Total repayment | C17: =C15*C11 -> -117230.5066 | D17: =D15*D11 -> -117231.3789 | F17: =F15*F11 -> -115872.8936 | G17: =G15*G11 -> -115873.7524
B18: Interest | C18: =C17+C12 -> -17230.50661 | D18: =D17+D12 -> -17231.37891 | F18: =F17+F12 -> -15872.89364 | G18: =G17+G12 -> -15873.75237
B19: DF n+1 | C19: =POWER(1+C10,-(1+C11)) -> 0.7224212766 | D19: =POWER(1+D10,-(1+D11)) -> 0.7224212766 | F19: =POWER(1+F10,-(1+F11)) -> 0.7392474985 | G19: =POWER(1+G10,-(1+G11)) -> 0.7392474985
B20: Cost of Loan | C20: =C12+C17*C19 -> 15310.18776 | D20: =D12+D17*D19 -> 15309.55759 | F20: =F12+F17*F19 -> 14341.25323 | G20: 14340.61842
A22: 2 | B22: SCHEDULE
C23: Rate | D23: =C10 -> 0.03
C24: Years | D24: =+C11 -> 10
C25: Capital | D25: =+C12 -> 100000
B27: TABLE IN CURRENT CURRENCY | G27: TABLE IN CONSTANT CURRENCY
B28: OC | C28: INTEREST | D28: CAPITAL | E28: ANNUITY | F28: DF | G28: OC | H28: INTEREST | I28: CAPITAL | J28: ANNUITY
A29: 1 | B29: =+D25 -> 100000 | C29: =B29*$D$23 -> 3000 | D29: =E29-C29 -> 8723.050661 | E29: =-C15 -> 11723.05066 | F29: =POWER(1+$D$23,-A29) -> 0.9708737864 | G29: =B29*$F29 -> 97087.37864 | H29: 2912.621359 | I29: 8468.981224 | J29: 11381.60258
A30: 2 | B30: =B29-D29 -> 91276.94934 | C30: =B30*$D$23 -> 2738.30848 | D30: =E30-C30 -> 8984.74218 | E30: =E29 -> 11723.05066 | F30: 0.9425959091 | G30: 86037.27905 | H30: 2581.118371 | I30: 8468.981224 | J30: 11050.0996
A31: 3 | B31: =B30-D30 -> 82292.20716 | C31: 2468.766215 | D31: 9254.284446 | E31: =E30 -> 11723.05066 | F31: 0.9151416594 | G31: 75309.02701 | H31: 2259.27081 | I31: 8468.981224 | J31: 10728.25203
A32: 4 | B32: 73037.92271 | C32: 2191.137681 | D32: 9531.912979 | E32: 11723.05066 | F32: 0.8884870479 | G32: 64893.24834 | H32: 1946.79745 | I32: 8468.981224 | J32: 10415.77867
A33: 5 | B33: 63506.00973 | C33: 1905.180292 | D33: 9817.870368 | E33: 11723.05066 | F33: 0.8626087844 | G33: 54780.84186 | H33: 1643.425256 | I33: 8468.981224 | J33: 10112.40648
A34: 6 | B34: 53688.13937 | C34: 1610.644181 | D34: 10112.40648 | E34: 11723.05066 | F34: 0.8374842567 | G34: 44962.97149 | H34: 1348.889145 | I34: 8468.981224 | J34: 9817.870368
A35: 7 | B35: 43575.73289 | C35: 1307.271987 | D35: 10415.77867 | E35: 11723.05066 | F35: 0.8130915113 | G35: 35431.05851 | H35: 1062.931755 | I35: 8468.981224 | J35: 9531.912979
A36: 8 | B36: 33159.95421 | C36: 994.7986264 | D36: 10728.25203 | E36: 11723.05066 | F36: 0.7894092343 | G36: 26176.77406 | H36: 785.3032219 | I36: 8468.981224 | J36: 9254.284446
A37: 9 | B37: 22431.70218 | C37: 672.9510653 | D37: 11050.0996 | E37: 11723.05066 | F37: 0.7664167323 | G37: 17192.03188 | H37: 515.7609565 | I37: 8468.981224 | J37: 8984.74218
A38: 10 | B38: 11381.60258 | C38: 341.4480775 | D38: 11381.60258 | E38: 11723.05066 | F38: 0.7440939149 | G38: 8468.981224 | H38: 254.0694367 | I38: 8468.981224 | J38: 8723.050661
A39: 11 | B39: 0 | F39: 0.7224212766 | G39: =G38-I38 -> 0
B40: TOTAL | C40: =SUM(C29:C38) -> 17230.50661 | D40: =SUM(D29:D38) -> 100000 | E40: 117230.5066 | F40: =SUM(F29:F38) -> 8.530202837 | G40: =SUM(G29:G38) -> 510339.5921 | H40: =SUM(H29:H38) -> 15310.18776 | I40: =SUM(I29:I38) -> 84689.81224 | J40: =SUM(J29:J38) -> 100000
G41: COST | H41: =D40-E40*F39 -> 15310.18776 | I41: =forme(H41) -> =D40-E40*F39
C42: Controls with NPV | G42: COST | H42: =G40*D23 -> 15310.18776 | I42: =forme(H42) -> =G40*D23
C43: NPV | D43: =NPV(D23,E29:E38) -> 100000 | E43: =forme(D43) -> =NPV(D23,E29:E38)
C44: PV | D44: =PV(D23,D24,-E29) -> 100000 | E44: =forme(D44) -> =PV(D23,D24,-E29)
A46: 3 | B46: SCHEDULE WITH CONSTANT AMORTIZATION
C47: Rate | D47: 0.03
C48: Years | D48: 10
C49: Period | D49: annual
C50: Capital | D50: 100000
B52: OC | C52: INTEREST | D52: CAPITAL | E52: ANNUITY | G52: DF | H52: INT DF
A53: 1 | B53: =D50 -> 100000 | C53: =$D$47*B53 -> 3000 | D53: =D50/D48 -> 10000 | E53: =C53+D53 -> 13000 | G53: =POWER(1+$D$23,-A53) -> 0.9708737864 | H53: =G53*C53 -> 2912.621359
A54: 2 | B54: =B53-D53 -> 90000 | C54: =$D$47*B54 -> 2700 | D54: =D53 -> 10000 | E54: =C54+D54 -> 12700 | G54: =POWER(1+$D$23,-A54) -> 0.9425959091 | H54: =G54*C54 -> 2545.008955
A55: 3 | B55: =B54-D54 -> 80000 | C55: 2400 | D55: =D54 -> 10000 | E55: 12400 | G55: 0.9151416594 | H55: 2196.339982
A56: 4 | B56: 70000 | C56: 2100 | D56: 10000 | E56: 12100 | G56: 0.8884870479 | H56: 1865.822801
A57: 5 | B57: 60000 | C57: 1800 | D57: 10000 | E57: 11800 | G57: 0.8626087844 | H57: 1552.695812
A58: 6 | B58: 50000 | C58: 1500 | D58: 10000 | E58: 11500 | G58: 0.8374842567 | H58: 1256.226385
A59: 7 | B59: 40000 | C59: 1200 | D59: 10000 | E59: 11200 | G59: 0.8130915113 | H59: 975.7098136
A60: 8 | B60: 30000 | C60: 900 | D60: 10000 | E60: 10900 | G60: 0.7894092343 | H60: 710.4683109
A61: 9 | B61: 20000 | C61: 600 | D61: 10000 | E61: 10600 | G61: 0.7664167323 | H61: 459.8500394
A62: 10 | B62: 10000 | C62: 300 | D62: 10000 | E62: 10300 | G62: 0.7440939149 | H62: 223.2281745
B63: 0
B64: TOTAL | C64: =SUM(C53:C62) -> 16500 | D64: 100000 | E64: 116500 | G64: =SUM(G53:G62) -> 8.530202837 | H64: 14697.97163
C66: Controls with NPV
C67: NPV | D67: =NPV(D47,E53:E62) -> 100000 | E67: =forme(D67) -> =NPV(D47,E53:E62)
D68: =SUMPRODUCT(E53:E62,G53:G62) -> 100000 | E68: =forme(D68) -> =SUMPRODUCT(E53:E62,G53:G62)
C69: COST | D69: =NPV(D47,C53:C62) -> 14697.97163 | E69: =forme(D69) -> =NPV(D47,C53:C62)
A71: 4 | B71: DIFFERED PAYMENT
C72: Loan over 10 years, with the 4 first years without payment
C73: Rate | D73: 0.03
E75: =PMT(D73,A86-A80,B81) -> -20776.61131 | F75: =forme(E75) -> =PMT(D73,A86-A80,B81)
B76: OC | C76: INTEREST | D76: CAPITAL | E76: ANNUITY
A77: 1 | B77: 100000 | C77: =B77*$D$73 -> 3000 | D77: =E77-C77 -> -3000 | E77: 0
A78: 2 | B78: =B77-D77 -> 103000 | C78: =B78*$D$73 -> 3090 | D78: =E78-C78 -> -3090 | E78: =E77 -> 0
A79: 3 | B79: =B78-D78 -> 106090 | C79: 3182.7 | D79: -3182.7 | E79: =E78 -> 0
A80: 4 | B80: 109272.7 | C80: 3278.181 | D80: -3278.181 | E80: 0
A81: 5 | B81: 112550.881 | C81: 3376.52643 | D81: 17400.08488 | E81: =-$E$75 -> 20776.61131
A82: 6 | B82: 95150.79612 | C82: 2854.523884 | D82: 17922.08742 | E82: =-$E$75 -> 20776.61131
A83: 7 | B83: 77228.7087 | C83: 2316.861261 | D83: 18459.75005 | E83: 20776.61131
A84: 8 | B84: 58768.95866 | C84: 1763.06876 | D84: 19013.54255 | E84: 20776.61131
A85: 9 | B85: 39755.41611 | C85: 1192.662483 | D85: 19583.94882 | E85: 20776.61131
A86: 10 | B86: 20171.46729 | C86: 605.1440186 | D86: 20171.46729 | E86: 20776.61131
B87: 0
A89: 5 | B89: DIFFERED PAYMENT
C90: Loan over 10 years, with the 4 first years payment of interest only
C92: Rate | D92: 0.03
E94: =PMT(D92,A105-A99,B100) -> -18459.75005 | F94: =forme(E94) -> =PMT(D92,A105-A99,B100)
B95: OC | C95: INTEREST | D95: CAPITAL | E95: ANNUITY
A96: 1 | B96: 100000 | C96: =B96*$D$73 -> 3000 | D96: =E96-C96 -> 0 | E96: =C96 -> 3000
A97: 2 | B97: =B96-D96 -> 100000 | C97: =B97*$D$73 -> 3000 | D97: =E97-C97 -> 0 | E97: =C97 -> 3000
A98: 3 | B98: =B97-D97 -> 100000 | C98: 3000 | D98: 0 | E98: 3000
A99: 4 | B99: 100000 | C99: 3000 | D99: 0 | E99: 3000
A100: 5 | B100: 100000 | C100: 3000 | D100: 15459.75005 | E100: =-E94 -> 18459.75005
A101: 6 | B101: 84540.24995 | C101: 2536.207499 | D101: 15923.54255 | E101: =E100 -> 18459.75005
A102: 7 | B102: 68616.70741 | C102: 2058.501222 | D102: 16401.24882 | E102: =E101 -> 18459.75005
A103: 8 | B103: 52215.45859 | C103: 1566.463758 | D103: 16893.28629 | E103: 18459.75005
A104: 9 | B104: 35322.1723 | C104: 1059.665169 | D104: 17400.08488 | E104: 18459.75005
A105: 10 | B105: 17922.08742 | C105: 537.6626227 | D105: 17922.08742 | E105: 18459.75005
B106: 0
A108: 6 | B108: LOAN WITH INCREASING ANNUITY
C109: Loan with quaterly payments increasing of 20% each year
C111: Capital | D111: 100000
C112: Years | D112: 4 | E112: years
C113: Period | D113: quaterly
C114: Rate | D114: 0.04
C115: Annual Increase | D115: 0.2
B117: OC | C117: INTEREST | D117: CAPITAL | E117: INSTALLMENT
A118: 1 | B118: =D111 -> 100000 | C118: =B118*$D$114/4 -> 1000 | D118: =E118-C118 -> 4108.758362 | E118: 5108.758362
A119: 2 | B119: =B118-D118 -> 95891.24164 | C119: =B119*$D$114/4 -> 958.9124164 | D119: =E119-C119 -> 4149.845946 | E119: =+E118 -> 5108.758362
A120: 3 | B120: =B119-D119 -> 91741.39569 | C120: 917.4139569 | D120: 4191.344406 | E120: =+E119 -> 5108.758362
A121: 4 | B121: 87550.05129 | C121: 875.5005129 | D121: 4233.25785 | E121: 5108.758362
A122: 5 | B122: 83316.79344 | C122: 833.1679344 | D122: 5297.342101 | E122: =E121*(1+$D$115) -> 6130.510035
A123: 6 | B123: 78019.45134 | C123: 780.1945134 | D123: 5350.315522 | E123: =E122 -> 6130.510035
A124: 7 | B124: 72669.13581 | C124: 726.6913581 | D124: 5403.818677 | E124: =E123 -> 6130.510035
A125: 8 | B125: 67265.31714 | C125: 672.6531714 | D125: 5457.856864 | E125: =E124 -> 6130.510035
A126: 9 | B126: 61807.46027 | C126: 618.0746027 | D126: 6738.537439 | E126: =E125*(1+$D$115) -> 7356.612042
A127: 10 | B127: 55068.92283 | C127: 550.6892283 | D127: 6805.922814 | E127: =E126 -> 7356.612042
A128: 11 | B128: 48263.00002 | C128: 482.6300002 | D128: 6873.982042 | E128: =E127 -> 7356.612042
A129: 12 | B129: 41389.01798 | C129: 413.8901798 | D129: 6942.721862 | E129: =E128 -> 7356.612042
A130: 13 | B130: 34446.29612 | C130: 344.4629612 | D130: 8483.471489 | E130: =E129*(1+$D$115) -> 8827.93445
A131: 14 | B131: 25962.82463 | C131: 259.6282463 | D131: 8568.306204 | E131: =E130 -> 8827.93445
A132: 15 | B132: 17394.51842 | C132: 173.9451842 | D132: 8653.989266 | E132: =E131 -> 8827.93445
A133: 16 | B133: 8740.529159 | C133: 87.40529159 | D133: 8740.529159 | E133: =E132 -> 8827.93445
B134: 1.818989404e-11 | C134: =SUM(C118:C133) -> 9695.259558 | D134: =SUM(D118:D133) -> 100000 | E134: =SUM(E118:E133) -> 109695.2596
A136: 7 | B136: LOAN WITH MULTIPLE ISSUES
C137: Rate | D137: 0.03
B138: First Solution With Annuity
B139: Flows | C139: OC | D139: INTEREST | E139: CAPITAL | F139: ANNUITY
A140: 10 | B140: 100000 | C140: =B140 -> 100000 | D140: =C140*$D$137 -> 3000 | E140: =F140-D140 -> 2000 | F140: 5000 | G140: =forme(F140) -> 5000
A141: 9 | B141: 50000 | C141: =C140-E140+B141 -> 148000 | D141: =C141*$D$137 -> 4440 | E141: =F141-D141 -> -4440 | G141: =forme(F141) -> 
A142: 8 | B142: 20000 | C142: =C141-E141+B142 -> 172440 | D142: 5173.2 | E142: -5173.2
A143: 7 | B143: 10000 | C143: 187613.2 | D143: 5628.396 | E143: -5628.396
A144: 6 | C144: 193241.596 | D144: 5797.24788 | E144: -5797.24788
A145: 5 | C145: 199038.8439 | D145: 5971.165316 | E145: -5971.165316
A146: 4 | C146: 205010.0092 | D146: 6150.300276 | E146: -6150.300276
A147: 3 | C147: 211160.3095 | D147: 6334.809284 | E147: -6334.809284
A148: 2 | C148: 217495.1188 | D148: 6524.853563 | E148: -6524.853563
A149: 1 | C149: 224019.9723 | D149: 6720.59917 | E149: -6720.59917
A150: 0 | C150: 230740.5715
C151: TOTAL | D151: =SUM(D140:D149) -> 55740.57149 | E151: =SUM(E140:E149) -> -50740.57149 | F151: 5000
B152: Second Solution With Capital
B153: Flows | C153: OC | D153: INTEREST | E153: CAPITAL | F153: ANNUITY
A154: 10 | B154: 100000 | C154: =B154 -> 100000 | G154: =forme(E154) -> 
A155: 9 | B155: 50000 | G155: =forme(E155) -> 
A156: 8 | B156: 20000
A157: 7 | B157: 10000
A158: 6
A159: 5
A160: 4
A161: 3
A162: 2
A163: 1
A164: 0
C165: TOTAL | D165: =SUM(D154:D163) -> 0 | E165: =SUM(E154:E163) -> 0 | F165: 0
A167: 8 | B167: Table Single Entry: Rate
C168: Capital | D168: 100000
C169: Years | D169: 5
C170: Period | D170: annual
C171: Rate | D171: 0.04
C173: Payment | D173: Sum of Interest | E173: Cost
C174: =-PMT(D171,D169,D168) -> 22462.71135 | D174: =C174*D169-D168 -> 12313.55675 | E174: =D168-D169*C174/(1+D171)^(D169+1) -> 11236.96467
B175: 0.02 | C175: 21215.83941 | D175: 6079.197052 | E175: 5804.708772
B176: =B175+0.004 -> 0.024 | C176: 21462.76232 | D176: 7313.81159 | E176: 6920.105869
B177: =B176+0.004 -> 0.028 | C177: 21710.91877 | D177: 8554.593855 | E177: 8020.823098
B178: 0.032 | C178: 21960.30097 | D178: 9801.504848 | E178: 9107.068945
B179: 0.036 | C179: 22210.9011 | D179: 11054.50551 | E179: 10179.04873
B180: 0.04 | C180: 22462.71135 | D180: 12313.55675 | E180: 11236.96467
B181: 0.044 | C181: 22715.72388 | D181: 13578.6194 | E181: 12281.0159
B182: 0.048 | C182: 22969.93086 | D182: 14849.65428 | E182: 13311.39858
B183: 0.052 | C183: 23225.32444 | D183: 16126.6222 | E183: 14328.30589
A185: 9 | B185: Table with Double Entry: rate and duration
C186: Capital | D186: 100000
C187: Period | D187: annual
C188: Rate | D188: 0.04
C189: Years | D189: 3 | E189: years
B191: =-PMT(D188,D189,D186) -> 36034.85392 | C191: 1 | D191: 2 | E191: 3 | F191: 4 | G191: 5
B192: =B175 -> 0.02 | C192: 102000 | D192: 51504.9505 | E192: 34675.46726 | F192: 26262.37527 | G192: 21215.83941
B193: =B176 -> 0.024 | C193: 102400 | D193: 51807.11462 | E193: 34945.98096 | F193: 26517.78456 | G193: 21462.76232
B194: 0.028 | C194: 102800 | D194: 52109.66469 | E194: 35217.18059 | F194: 26774.15805 | G194: 21710.91877
B195: 0.032 | C195: 103200 | D195: 52412.59843 | E195: 35489.06202 | F195: 27031.48982 | G195: 21960.30097
B196: 0.036 | C196: 103600 | D196: 52715.91356 | E196: 35761.62115 | F196: 27289.77394 | G196: 22210.9011
B197: 0.04 | C197: 104000 | D197: 53019.60784 | E197: 36034.85392 | F197: 27549.00454 | G197: 22462.71135
B198: 0.044 | C198: 104400 | D198: 53323.67906 | E198: 36308.75627 | F198: 27809.17572 | G198: 22715.72388
B199: 0.048 | C199: 104800 | D199: 53628.125 | E199: 36583.32418 | F199: 28070.28162 | G199: 22969.93086
B200: 0.052 | C200: 105200 | D200: 53932.94347 | E200: 36858.55363 | F200: 28332.31639 | G200: 23225.32444

Sheet AMORT
A3: LINEAR | B3: AMORTIZATION WITHOUT ENDING
A4: FLOWS | B4: 40000 | C4: 10000
A5: SUM | B5: =B4 -> 40000 | C5: =B5+C4 -> 50000 | D5: 50000 | E5: 50000 | F5: 50000 | G5: 50000 | H5: 50000 | I5: 50000 | J5: =forme(I5) -> =H5+I4
A6: BASE | B6: =B5-B7 -> 32000 | C6: =B6-C7+C4 -> 32000 | D6: 22000 | E6: 12000 | F6: 2000 | G6: -8000 | H6: -18000 | I6: -28000 | J6: =forme(I6) -> =H6-I7+I4
A7: AMORT | B7: =B5/5 -> 8000 | C7: =C5/5 -> 10000 | D7: =D5/5 -> 10000 | E7: =E5/5 -> 10000 | F7: 10000 | G7: 10000 | H7: 10000 | I7: 10000 | J7: =I5/5
B8: AMORTIZATION WITH ENDING
A9: SUM | B9: =B15 -> 40000 | C9: =B9+C15 -> 50000 | D9: 50000 | E9: 50000 | F9: 50000 | G9: 50000 | H9: 50000 | I9: 50000 | J9: =forme(I9) -> =H9+I15
A10: BASE | B10: =B9-B11 -> 32000 | C10: =B10-C11+C15 -> 32000 | D10: 22000 | E10: 12000 | F10: 2000 | G10: 0 | H10: 0 | I10: 0 | J10: =forme(I10) -> =H10-I11+I15
A11: AMORT | B11: =MAX(B9/5,0) -> 8000 | C11: =MIN(C9/5,B10) -> 10000 | D11: =MIN(D9/5,C10) -> 10000 | E11: 10000 | F11: 10000 | G11: 2000 | H11: 0 | I11: 0 | J11: =forme(I11) -> =MIN(I9/5,H10)
J13: =forme(I13) -> 
A14: DEGRESSIV | B14: AMORTIZATION WITHOUT ENDING
A15: FLOWS | B15: 40000 | C15: 10000
A16: BASE | B16: =+B5 -> 40000 | C16: =B16-B17+C4 -> 42000 | D16: =C16-C17+D4 -> 33600 | E16: =D16-D17+E4 -> 26880 | F16: 21504 | G16: 17203.2 | H16: 13762.56 | I16: 11010.048 | J16: =forme(I16) -> =H16-H17+I4
A17: AMORT | B17: =B16/5 -> 8000 | C17: =C16/5 -> 8400 | D17: =D16/5 -> 6720 | E17: =E16/5 -> 5376 | F17: 4300.8 | G17: 3440.64 | H17: 2752.512 | I17: 2202.0096 | J17: =forme(I17) -> =I16/5
B18: AMORTIZATION WITH ENDING
A19: BASE | B19: =B9 -> 40000 | C19: =B19-B20+C15 -> 42000 | D19: 33600 | E19: 26880 | F19: 21504 | G19: 17203.2 | H19: 0 | I19: 0 | J19: =H19-H20+I15
A20: AMORT | B20: =B19/5 -> 8000 | C20: =C19/5 -> 8400 | D20: =D19/5 -> 6720 | E20: =E19/5 -> 5376 | F20: 4300.8 | G20: =G19 -> 17203.2 | H20: 0 | I20: 0 | J20: =forme(G20) -> =G19
B21: CONTROLS
A22: SUM AMORT | B22: =B20 -> 8000 | C22: =B22+C20 -> 16400 | D22: =C22+D20 -> 23120 | E22: 28496 | F22: 32796.8 | G22: 50000 | H22: 50000
A23: CONTROL | B23: =B22+C19 -> 50000 | C23: =C22+D19 -> 50000 | D23: =D22+E19 -> 50000 | E23: 50000 | F23: =F22+G19 -> 50000 | G23: =G22+H19 -> 50000 | H23: 50000
A26: PROJECT | B26: AMORTIZATION | D26: 0.2 | E26: =1/D26 -> 5
A27: FLOWS | B27: 40000 | I27: =SUM(B27:H27) -> 40000
A28: BASE | B28: =B27 -> 40000 | C28: =B28-C29+C27 -> 32000 | D28: 25600 | E28: 20480 | F28: 16384 | G28: 13107.2 | H28: 0
A29: AMORT | C29: =B28/$E$26 -> 8000 | D29: =C28/$E$26 -> 6400 | E29: 5120 | F29: 4096 | G29: 3276.8 | H29: =G28 -> 13107.2 | I29: =SUM(B29:H29) -> 40000
A30: SUM AMORT | C30: =C29 -> 8000 | D30: =C30+D29 -> 14400 | E30: =D30+E29 -> 19520 | F30: 23616 | G30: 26892.8 | H30: 40000
A31: CONTROL | C31: =C30+C28 -> 40000 | D31: =D30+D28 -> 40000 | E31: =E30+E28 -> 40000 | F31: 40000 | G31: 40000 | H31: 40000
A32: PROJECT | B32: AMORTIZATION | D32: 0.25 | E32: =1/D32 -> 4
A33: FLOWS | C33: =10000*1.03 -> 10300 | D33: =C33*1.03 -> 10609 | I33: =SUM(B33:H33) -> 20909
A34: BASE | C34: =B34-C35+C33 -> 10300 | D34: 18334 | E34: 13750.5 | F34: 10312.875 | G34: 7734.65625 | H34: 0
A35: AMORT | C35: =B34/$E$32 -> 0 | D35: =C34/$E$32 -> 2575 | E35: =D34/$E$32 -> 4583.5 | F35: 3437.625 | G35: 2578.21875 | H35: =G34 -> 7734.65625 | I35: =SUM(B35:H35) -> 20909
A36: SUM AMORT | C36: =C35 -> 0 | D36: =C36+D35 -> 2575 | E36: =D36+E35 -> 7158.5 | F36: =E36+F35 -> 10596.125 | G36: =F36+G35 -> 13174.34375 | H36: =G36+H35 -> 20909
A37: CONTROL | C37: =C36+C34 -> 10300 | D37: =D36+D34 -> 20909 | E37: =E36+E34 -> 20909 | F37: =F36+F34 -> 20909 | G37: =G36+G34 -> 20909 | H37: =H36+H34 -> 20909
A39: AMORT | C39: =C29+C35 -> 8000 | D39: =D29+D35 -> 8975 | E39: 9703.5 | F39: 7533.625 | G39: 5855.01875 | H39: 20841.85625

Sheet RockyMountain
A1: MINI CASE STUDY
D2: 0 | E2: 1 | F2: 2 | G2: 3 | H2: 4 | I2: 5 | J2: 6 | K2: 7 | L2: 8 | M2: 9 | N2: 10
A4: investment | D4: 55
A5: investment | D5: 5
A6: initial cost | D6: 1
A7: working capital | D7: 3
A8: revenues-cost | E8: 15 | F8: 15 | G8: 15 | H8: 15 | I8: 15 | J8: 15 | K8: 15 | L8: 15 | M8: 15 | N8: 15
A9: termination cost | N9: 0.5
A10: termination sell | N10: 5
A12: amortization | E12: =-D4/10 -> -5.5 | F12: =E12 -> -5.5 | G12: =F12 -> -5.5 | H12: =G12 -> -5.5 | I12: =H12 -> -5.5 | J12: =I12 -> -5.5 | K12: =J12 -> -5.5 | L12: =K12 -> -5.5 | M12: =L12 -> -5.5 | N12: =M12 -> -5.5
A13: amortization | E13: =-D5/10 -> -0.5 | F13: =E13 -> -0.5 | G13: =F13 -> -0.5 | H13: =G13 -> -0.5 | I13: =H13 -> -0.5 | J13: =I13 -> -0.5 | K13: =J13 -> -0.5 | L13: =K13 -> -0.5 | M13: =L13 -> -0.5 | N13: =M13 -> -0.5
A15: CASH FLOW STATEMENT
A16: investment | D16: =-D4-D5 -> -60
A17: operation costs | D17: =-D6 -> -1 | N17: =-N9 -> -0.5
A18: working capital | D18: =-D7 -> -3 | E18: 0 | F18: 0 | G18: 0 | H18: 0 | I18: 0 | J18: 0 | K18: 0 | L18: 0 | M18: 0 | N18: =-D18 -> 3
A19: revenues-costs | D19: 0 | E19: =E8 -> 15 | F19: =F8 -> 15 | G19: =G8 -> 15 | H19: =H8 -> 15 | I19: =I8 -> 15 | J19: =J8 -> 15 | K19: =K8 -> 15 | L19: =L8 -> 15 | M19: =M8 -> 15 | N19: =N8 -> 15
A20: termination sell | D20: 0 | E20: 0 | F20: 0 | G20: 0 | H20: 0 | I20: 0 | J20: 0 | K20: 0 | L20: 0 | M20: 0 | N20: =N10 -> 5
A21: tax | D21: =D28 -> 0.4 | E21: =E28 -> -3.6 | F21: =F28 -> -3.6 | G21: =G28 -> -3.6 | H21: =H28 -> -3.6 | I21: =I28 -> -3.6 | J21: =J28 -> -3.6 | K21: =K28 -> -3.6 | L21: =L28 -> -3.6 | M21: =M28 -> -3.6 | N21: =N28 -> -5.4
C22: =IRR(D22:N22) -> 0.129764876 | D22: =SUM(D16:D21) -> -63.6 | E22: =SUM(E16:E21) -> 11.4 | F22: =SUM(F16:F21) -> 11.4 | G22: =SUM(G16:G21) -> 11.4 | H22: =SUM(H16:H21) -> 11.4 | I22: =SUM(I16:I21) -> 11.4 | J22: =SUM(J16:J21) -> 11.4 | K22: =SUM(K16:K21) -> 11.4 | L22: =SUM(L16:L21) -> 11.4 | M22: =SUM(M16:M21) -> 11.4 | N22: =SUM(N16:N21) -> 17.1
D23: =D22 -> -63.6 | E23: =D23+E22 -> -52.2 | F23: =E23+F22 -> -40.8 | G23: =F23+G22 -> -29.4 | H23: =G23+H22 -> -18 | I23: =H23+I22 -> -6.6 | J23: =I23+J22 -> 4.8 | K23: =J23+K22 -> 16.2 | L23: =K23+L22 -> 27.6 | M23: =L23+M22 -> 39 | N23: =M23+N22 -> 56.1
A24: INCOME STATEMENT
A25: revenues-costs | D25: =D19+D20+D17 -> -1 | E25: =E19+E20+E17 -> 15 | F25: =F19+F20+F17 -> 15 | G25: =G19+G20+G17 -> 15 | H25: =H19+H20+H17 -> 15 | I25: =I19+I20+I17 -> 15 | J25: =J19+J20+J17 -> 15 | K25: =K19+K20+K17 -> 15 | L25: =L19+L20+L17 -> 15 | M25: =M19+M20+M17 -> 15 | N25: =N19+N20+N17 -> 19.5
A26: amortization | D26: =D12+D13 -> 0 | E26: =E12+E13 -> -6 | F26: =F12+F13 -> -6 | G26: =G12+G13 -> -6 | H26: =H12+H13 -> -6 | I26: =I12+I13 -> -6 | J26: =J12+J13 -> -6 | K26: =K12+K13 -> -6 | L26: =L12+L13 -> -6 | M26: =M12+M13 -> -6 | N26: =N12+N13 -> -6
D27: =D25+D26 -> -1 | E27: =E25+E26 -> 9 | F27: =F25+F26 -> 9 | G27: =G25+G26 -> 9 | H27: =H25+H26 -> 9 | I27: =I25+I26 -> 9 | J27: =J25+J26 -> 9 | K27: =K25+K26 -> 9 | L27: =L25+L26 -> 9 | M27: =M25+M26 -> 9 | N27: =N25+N26 -> 13.5
A28: tax | B28: 0.4 | D28: =-D27*$B$28 -> 0.4 | E28: =-E27*$B$28 -> -3.6 | F28: =-F27*$B$28 -> -3.6 | G28: =-G27*$B$28 -> -3.6 | H28: =-H27*$B$28 -> -3.6 | I28: =-I27*$B$28 -> -3.6 | J28: =-J27*$B$28 -> -3.6 | K28: =-K27*$B$28 -> -3.6 | L28: =-L27*$B$28 -> -3.6 | M28: =-M27*$B$28 -> -3.6 | N28: =-N27*$B$28 -> -5.4
A29: profit | D29: =D27+D28 -> -0.6 | E29: =E27+E28 -> 5.4 | F29: =F27+F28 -> 5.4 | G29: =G27+G28 -> 5.4 | H29: =H27+H28 -> 5.4 | I29: =I27+I28 -> 5.4 | J29: =J27+J28 -> 5.4 | K29: =K27+K28 -> 5.4 | L29: =L27+L28 -> 5.4 | M29: =M27+M28 -> 5.4 | N29: =N27+N28 -> 8.1
D30: =D29 -> -0.6 | E30: =D30+E29 -> 4.8 | F30: =E30+F29 -> 10.2 | G30: =F30+G29 -> 15.6 | H30: =G30+H29 -> 21 | I30: =H30+I29 -> 26.4 | J30: =I30+J29 -> 31.8 | K30: =J30+K29 -> 37.2 | L30: =K30+L29 -> 42.6 | M30: =L30+M29 -> 48 | N30: =M30+N29 -> 56.1
A31: BALANCE SHEET ASSET
A32: fixed assets | D32: =-D16 -> 60 | E32: =D32+E26 -> 54 | F32: =E32+F26 -> 48 | G32: =F32+G26 -> 42 | H32: =G32+H26 -> 36 | I32: =H32+I26 -> 30 | J32: =I32+J26 -> 24 | K32: =J32+K26 -> 18 | L32: =K32+L26 -> 12 | M32: =L32+M26 -> 6 | N32: =M32+N26 -> 0
A33: working capital | D33: =-D18 -> 3 | E33: =D33 -> 3 | F33: =E33 -> 3 | G33: =F33 -> 3 | H33: =G33 -> 3 | I33: =H33 -> 3 | J33: =I33 -> 3 | K33: =J33 -> 3 | L33: =K33 -> 3 | M33: =L33 -> 3 | N33: 0
A34: cash account | J34: =J23 -> 4.8 | K34: =K23 -> 16.2 | L34: =L23 -> 27.6 | M34: =M23 -> 39 | N34: =N23 -> 56.1
D35: =SUM(D32:D34) -> 63 | E35: =SUM(E32:E34) -> 57 | F35: =SUM(F32:F34) -> 51 | G35: =SUM(G32:G34) -> 45 | H35: =SUM(H32:H34) -> 39 | I35: =SUM(I32:I34) -> 33 | J35: =SUM(J32:J34) -> 31.8 | K35: =SUM(K32:K34) -> 37.2 | L35: =SUM(L32:L34) -> 42.6 | M35: =SUM(M32:M34) -> 48 | N35: =SUM(N32:N34) -> 56.1
A36: BALANCE SHEET LIABILITIES
A37: retained earnings | D37: =D30 -> -0.6 | E37: =E30 -> 4.8 | F37: =F30 -> 10.2 | G37: =G30 -> 15.6 | H37: =H30 -> 21 | I37: =I30 -> 26.4 | J37: =J30 -> 31.8 | K37: =K30 -> 37.2 | L37: =L30 -> 42.6 | M37: =M30 -> 48 | N37: =N30 -> 56.1
A38: cash account | D38: =-D23 -> 63.6 | E38: =-E23 -> 52.2 | F38: =-F23 -> 40.8 | G38: =-G23 -> 29.4 | H38: =-H23 -> 18 | I38: =-I23 -> 6.6
D39: =SUM(D37:D38) -> 63 | E39: =SUM(E37:E38) -> 57 | F39: =SUM(F37:F38) -> 51 | G39: =SUM(G37:G38) -> 45 | H39: =SUM(H37:H38) -> 39 | I39: =SUM(I37:I38) -> 33 | J39: =SUM(J37:J38) -> 31.8 | K39: =SUM(K37:K38) -> 37.2 | L39: =SUM(L37:L38) -> 42.6 | M39: =SUM(M37:M38) -> 48 | N39: =SUM(N37:N38) -> 56.1
B41: =SUM(C41:N41) -> 0 | D41: =D35-D39 -> 0 | E41: =E35-E39 -> 0 | F41: =F35-F39 -> 0 | G41: =G35-G39 -> 0 | H41: =H35-H39 -> 0 | I41: =I35-I39 -> 0 | J41: =J35-J39 -> 0 | K41: =K35-K39 -> 0 | L41: =L35-L39 -> 0 | M41: =M35-M39 -> 0 | N41: =N35-N39 -> 0

Sheet RockyMountainPlus
A1: MINI CASE STUDY
D2: 0 | E2: 1 | F2: 2 | G2: 3 | H2: 4 | I2: 5 | J2: 6 | K2: 7 | L2: 8 | M2: 9 | N2: 10
A4: investment | D4: 55
A5: investment | D5: 5
A6: initial cost | D6: 1
A7: working capital | D7: 3
A8: revenues-cost | E8: 15 | F8: 15 | G8: 15 | H8: 15 | I8: 15 | J8: 15 | K8: 15 | L8: 15 | M8: 15 | N8: 15
A9: termination cost | N9: 0.5
A10: termination sell | N10: 5
A11: debt | B11: 0.04 | C11: =PMT(B11,10,D11) -> -6.164547217 | D11: 50
A12: equity | D12: 15
A14: amortization | E14: =-D4/10 -> -5.5 | F14: =E14 -> -5.5 | G14: =F14 -> -5.5 | H14: =G14 -> -5.5 | I14: =H14 -> -5.5 | J14: =I14 -> -5.5 | K14: =J14 -> -5.5 | L14: =K14 -> -5.5 | M14: =L14 -> -5.5 | N14: =M14 -> -5.5
A15: amortization | E15: =-D5/10 -> -0.5 | F15: =E15 -> -0.5 | G15: =F15 -> -0.5 | H15: =G15 -> -0.5 | I15: =H15 -> -0.5 | J15: =I15 -> -0.5 | K15: =J15 -> -0.5 | L15: =K15 -> -0.5 | M15: =L15 -> -0.5 | N15: =M15 -> -0.5
A16: annuity | E16: =-C11 -> 6.164547217 | F16: =E16 -> 6.164547217 | G16: =F16 -> 6.164547217 | H16: =G16 -> 6.164547217 | I16: =H16 -> 6.164547217 | J16: =I16 -> 6.164547217 | K16: =J16 -> 6.164547217 | L16: =K16 -> 6.164547217 | M16: =L16 -> 6.164547217 | N16: =M16 -> 6.164547217
A17: outstanding | D17: =D11 -> 50 | E17: =D17-E19 -> 45.83545278 | F17: =E17-F19 -> 41.50432368 | G17: =F17-G19 -> 36.99994941 | H17: =G17-H19 -> 32.31540017 | I17: =H17-I19 -> 27.44346896 | J17: =I17-J19 -> 22.3766605 | K17: =J17-K19 -> 17.1071797 | L17: =K17-L19 -> 11.62691968 | M17: =L17-M19 -> 5.927449247 | N17: =M17-N19 -> -7.993605777e-15
A18: interest | E18: =D17*$B$11 -> 2 | F18: =E17*$B$11 -> 1.833418111 | G18: =F17*$B$11 -> 1.660172947 | H18: =G17*$B$11 -> 1.479997976 | I18: =H17*$B$11 -> 1.292616007 | J18: =I17*$B$11 -> 1.097738758 | K18: =J17*$B$11 -> 0.89506642 | L18: =K17*$B$11 -> 0.6842871882 | M18: =L17*$B$11 -> 0.465076787 | N18: =M17*$B$11 -> 0.2370979699
A19: amortization | E19: =E16-E18 -> 4.164547217 | F19: =F16-F18 -> 4.331129105 | G19: =G16-G18 -> 4.504374269 | H19: =H16-H18 -> 4.68454924 | I19: =I16-I18 -> 4.87193121 | J19: =J16-J18 -> 5.066808458 | K19: =K16-K18 -> 5.269480796 | L19: =L16-L18 -> 5.480260028 | M19: =M16-M18 -> 5.699470429 | N19: =N16-N18 -> 5.927449247
A22: CASH FLOW STATEMENT
A23: investment | D23: =-D4-D5 -> -60
A24: operation costs | D24: =-D6 -> -1 | N24: =-N9 -> -0.5
A25: working capital | D25: =-D7 -> -3 | E25: 0 | F25: 0 | G25: 0 | H25: 0 | I25: 0 | J25: 0 | K25: 0 | L25: 0 | M25: 0 | N25: =-D25 -> 3
A26: revenues-costs | D26: 0 | E26: =E8 -> 15 | F26: =F8 -> 15 | G26: =G8 -> 15 | H26: =H8 -> 15 | I26: =I8 -> 15 | J26: =J8 -> 15 | K26: =K8 -> 15 | L26: =L8 -> 15 | M26: =M8 -> 15 | N26: =N8 -> 15
A27: termination sell | D27: 0 | E27: 0 | F27: 0 | G27: 0 | H27: 0 | I27: 0 | J27: 0 | K27: 0 | L27: 0 | M27: 0 | N27: =N10 -> 5
A28: tax | D28: =D44 -> 0.4 | E28: =E44 -> -2.8 | F28: =F44 -> -2.866632755 | G28: =G44 -> -2.935930821 | H28: =H44 -> -3.008000809 | I28: =I44 -> -3.082953597 | J28: =J44 -> -3.160904497 | K28: =K44 -> -3.241973432 | L28: =L44 -> -3.326285125 | M28: =M44 -> -3.413969285 | N28: =N44 -> -5.305160812
C29: =IRR(D29:N29) -> 0.1410128555 | D29: =SUM(D23:D28) -> -63.6 | E29: =SUM(E23:E28) -> 12.2 | F29: =SUM(F23:F28) -> 12.13336724 | G29: =SUM(G23:G28) -> 12.06406918 | H29: =SUM(H23:H28) -> 11.99199919 | I29: =SUM(I23:I28) -> 11.9170464 | J29: =SUM(J23:J28) -> 11.8390955 | K29: =SUM(K23:K28) -> 11.75802657 | L29: =SUM(L23:L28) -> 11.67371488 | M29: =SUM(M23:M28) -> 11.58603071 | N29: =SUM(N23:N28) -> 17.19483919
A30: interest | D30: =-D18 -> 0 | E30: =-E18 -> -2 | F30: =-F18 -> -1.833418111 | G30: =-G18 -> -1.660172947 | H30: =-H18 -> -1.479997976 | I30: =-I18 -> -1.292616007 | J30: =-J18 -> -1.097738758 | K30: =-K18 -> -0.89506642 | L30: =-L18 -> -0.6842871882 | M30: =-M18 -> -0.465076787 | N30: =-N18 -> -0.2370979699
C31: =IRR(D31:N31) -> 0.1130131572 | D31: =SUM(D29:D30) -> -63.6 | E31: =SUM(E29:E30) -> 10.2 | F31: =SUM(F29:F30) -> 10.29994913 | G31: =SUM(G29:G30) -> 10.40389623 | H31: =SUM(H29:H30) -> 10.51200121 | I31: =SUM(I29:I30) -> 10.6244304 | J31: =SUM(J29:J30) -> 10.74135674 | K31: =SUM(K29:K30) -> 10.86296015 | L31: =SUM(L29:L30) -> 10.98942769 | M31: =SUM(M29:M30) -> 11.12095393 | N31: =SUM(N29:N30) -> 16.95774122
A32: debt | D32: =D11 -> 50 | E32: =-E19 -> -4.164547217 | F32: =-F19 -> -4.331129105 | G32: =-G19 -> -4.504374269 | H32: =-H19 -> -4.68454924 | I32: =-I19 -> -4.87193121 | J32: =-J19 -> -5.066808458 | K32: =-K19 -> -5.269480796 | L32: =-L19 -> -5.480260028 | M32: =-M19 -> -5.699470429 | N32: =-N19 -> -5.927449247
C33: =IRR(D33:N33) -> 0.4256668791 | D33: =SUM(D31:D32) -> -13.6 | E33: =SUM(E31:E32) -> 6.035452783 | F33: =SUM(F31:F32) -> 5.968820028 | G33: =SUM(G31:G32) -> 5.899521962 | H33: =SUM(H31:H32) -> 5.827451974 | I33: =SUM(I31:I32) -> 5.752499186 | J33: =SUM(J31:J32) -> 5.674548287 | K33: =SUM(K31:K32) -> 5.593479352 | L33: =SUM(L31:L32) -> 5.509167659 | M33: =SUM(M31:M32) -> 5.421483498 | N33: =SUM(N31:N32) -> 11.03029197
A34: equity | D34: =D12 -> 15 | E34: 0 | F34: 0 | G34: 0 | H34: 0 | I34: 0 | J34: 0 | K34: 0 | L34: 0 | M34: 0 | N34: 0
D35: =SUM(D33:D34) -> 1.4 | E35: =SUM(E33:E34) -> 6.035452783 | F35: =SUM(F33:F34) -> 5.968820028 | G35: =SUM(G33:G34) -> 5.899521962 | H35: =SUM(H33:H34) -> 5.827451974 | I35: =SUM(I33:I34) -> 5.752499186 | J35: =SUM(J33:J34) -> 5.674548287 | K35: =SUM(K33:K34) -> 5.593479352 | L35: =SUM(L33:L34) -> 5.509167659 | M35: =SUM(M33:M34) -> 5.421483498 | N35: =SUM(N33:N34) -> 11.03029197
D36: =D35 -> 1.4 | E36: =D36+E35 -> 7.435452783 | F36: =E36+F35 -> 13.40427281 | G36: =F36+G35 -> 19.30379477 | H36: =G36+H35 -> 25.13124675 | I36: =H36+I35 -> 30.88374593 | J36: =I36+J35 -> 36.55829422 | K36: =J36+K35 -> 42.15177357 | L36: =K36+L35 -> 47.66094123 | M36: =L36+M35 -> 53.08242473 | N36: =M36+N35 -> 64.1127167
A38: INCOME STATEMENT
A39: revenues-costs | D39: =D26+D27+D24 -> -1 | E39: =E26+E27+E24 -> 15 | F39: =F26+F27+F24 -> 15 | G39: =G26+G27+G24 -> 15 | H39: =H26+H27+H24 -> 15 | I39: =I26+I27+I24 -> 15 | J39: =J26+J27+J24 -> 15 | K39: =K26+K27+K24 -> 15 | L39: =L26+L27+L24 -> 15 | M39: =M26+M27+M24 -> 15 | N39: =N26+N27+N24 -> 19.5
A40: amortization | D40: =D14+D15 -> 0 | E40: =E14+E15 -> -6 | F40: =F14+F15 -> -6 | G40: =G14+G15 -> -6 | H40: =H14+H15 -> -6 | I40: =I14+I15 -> -6 | J40: =J14+J15 -> -6 | K40: =K14+K15 -> -6 | L40: =L14+L15 -> -6 | M40: =M14+M15 -> -6 | N40: =N14+N15 -> -6
D41: =D39+D40 -> -1 | E41: =E39+E40 -> 9 | F41: =F39+F40 -> 9 | G41: =G39+G40 -> 9 | H41: =H39+H40 -> 9 | I41: =I39+I40 -> 9 | J41: =J39+J40 -> 9 | K41: =K39+K40 -> 9 | L41: =L39+L40 -> 9 | M41: =M39+M40 -> 9 | N41: =N39+N40 -> 13.5
A42: interest | D42: 0 | E42: =-$B$11*D54 -> -2 | F42: =-$B$11*E54 -> -1.833418111 | G42: =-$B$11*F54 -> -1.660172947 | H42: =-$B$11*G54 -> -1.479997976 | I42: =-$B$11*H54 -> -1.292616007 | J42: =-$B$11*I54 -> -1.097738758 | K42: =-$B$11*J54 -> -0.89506642 | L42: =-$B$11*K54 -> -0.6842871882 | M42: =-$B$11*L54 -> -0.465076787 | N42: =-$B$11*M54 -> -0.2370979699
D43: =SUM(D41:D42) -> -1 | E43: =SUM(E41:E42) -> 7 | F43: =SUM(F41:F42) -> 7.166581889 | G43: =SUM(G41:G42) -> 7.339827053 | H43: =SUM(H41:H42) -> 7.520002024 | I43: =SUM(I41:I42) -> 7.707383993 | J43: =SUM(J41:J42) -> 7.902261242 | K43: =SUM(K41:K42) -> 8.10493358 | L43: =SUM(L41:L42) -> 8.315712812 | M43: =SUM(M41:M42) -> 8.534923213 | N43: =SUM(N41:N42) -> 13.26290203
A44: tax | B44: 0.4 | D44: =-D43*$B$44 -> 0.4 | E44: =-E43*$B$44 -> -2.8 | F44: =-F43*$B$44 -> -2.866632755 | G44: =-G43*$B$44 -> -2.935930821 | H44: =-H43*$B$44 -> -3.008000809 | I44: =-I43*$B$44 -> -3.082953597 | J44: =-J43*$B$44 -> -3.160904497 | K44: =-K43*$B$44 -> -3.241973432 | L44: =-L43*$B$44 -> -3.326285125 | M44: =-M43*$B$44 -> -3.413969285 | N44: =-N43*$B$44 -> -5.305160812
A45: profit | D45: =SUM(D43:D44) -> -0.6 | E45: =SUM(E43:E44) -> 4.2 | F45: =SUM(F43:F44) -> 4.299949133 | G45: =SUM(G43:G44) -> 4.403896232 | H45: =SUM(H43:H44) -> 4.512001214 | I45: =SUM(I43:I44) -> 4.624430396 | J45: =SUM(J43:J44) -> 4.741356745 | K45: =SUM(K43:K44) -> 4.862960148 | L45: =SUM(L43:L44) -> 4.989427687 | M45: =SUM(M43:M44) -> 5.120953928 | N45: =SUM(N43:N44) -> 7.957741218
D46: =D45 -> -0.6 | E46: =D46+E45 -> 3.6 | F46: =E46+F45 -> 7.899949133 | G46: =F46+G45 -> 12.30384536 | H46: =G46+H45 -> 16.81584658 | I46: =H46+I45 -> 21.44027698 | J46: =I46+J45 -> 26.18163372 | K46: =J46+K45 -> 31.04459387 | L46: =K46+L45 -> 36.03402156 | M46: =L46+M45 -> 41.15497548 | N46: =M46+N45 -> 49.1127167
A47: BALANCE SHEET ASSET
A48: fixed assets | D48: =-D23 -> 60 | E48: =D48+E40 -> 54 | F48: =E48+F40 -> 48 | G48: =F48+G40 -> 42 | H48: =G48+H40 -> 36 | I48: =H48+I40 -> 30 | J48: =I48+J40 -> 24 | K48: =J48+K40 -> 18 | L48: =K48+L40 -> 12 | M48: =L48+M40 -> 6 | N48: =M48+N40 -> 0
A49: working capital | D49: =-D25 -> 3 | E49: =D49 -> 3 | F49: =E49 -> 3 | G49: =F49 -> 3 | H49: =G49 -> 3 | I49: =H49 -> 3 | J49: =I49 -> 3 | K49: =J49 -> 3 | L49: =K49 -> 3 | M49: =L49 -> 3 | N49: 0
A50: cash account | D50: =D36 -> 1.4 | E50: =E36 -> 7.435452783 | F50: =F36 -> 13.40427281 | G50: =G36 -> 19.30379477 | H50: =H36 -> 25.13124675 | I50: =I36 -> 30.88374593 | J50: =J36 -> 36.55829422 | K50: =K36 -> 42.15177357 | L50: =L36 -> 47.66094123 | M50: =M36 -> 53.08242473 | N50: =N36 -> 64.1127167
D51: =SUM(D48:D50) -> 64.4 | E51: =SUM(E48:E50) -> 64.43545278 | F51: =SUM(F48:F50) -> 64.40427281 | G51: =SUM(G48:G50) -> 64.30379477 | H51: =SUM(H48:H50) -> 64.13124675 | I51: =SUM(I48:I50) -> 63.88374593 | J51: =SUM(J48:J50) -> 63.55829422 | K51: =SUM(K48:K50) -> 63.15177357 | L51: =SUM(L48:L50) -> 62.66094123 | M51: =SUM(M48:M50) -> 62.08242473 | N51: =SUM(N48:N50) -> 64.1127167
A52: BALANCE SHEET LIABILITIES
A53: equity | D53: =D34 -> 15 | E53: =D53 -> 15 | F53: =E53 -> 15 | G53: =F53 -> 15 | H53: =G53 -> 15 | I53: =H53 -> 15 | J53: =I53 -> 15 | K53: =J53 -> 15 | L53: =K53 -> 15 | M53: =L53 -> 15 | N53: =M53 -> 15
A54: debt | D54: =D17 -> 50 | E54: =E17 -> 45.83545278 | F54: =F17 -> 41.50432368 | G54: =G17 -> 36.99994941 | H54: =H17 -> 32.31540017 | I54: =I17 -> 27.44346896 | J54: =J17 -> 22.3766605 | K54: =K17 -> 17.1071797 | L54: =L17 -> 11.62691968 | M54: =M17 -> 5.927449247 | N54: =N17 -> -7.993605777e-15
A55: retained earnings | D55: =D46 -> -0.6 | E55: =E46 -> 3.6 | F55: =F46 -> 7.899949133 | G55: =G46 -> 12.30384536 | H55: =H46 -> 16.81584658 | I55: =I46 -> 21.44027698 | J55: =J46 -> 26.18163372 | K55: =K46 -> 31.04459387 | L55: =L46 -> 36.03402156 | M55: =M46 -> 41.15497548 | N55: =N46 -> 49.1127167
A56: cash account
D57: =SUM(D53:D56) -> 64.4 | E57: =SUM(E53:E56) -> 64.43545278 | F57: =SUM(F53:F56) -> 64.40427281 | G57: =SUM(G53:G56) -> 64.30379477 | H57: =SUM(H53:H56) -> 64.13124675 | I57: =SUM(I53:I56) -> 63.88374593 | J57: =SUM(J53:J56) -> 63.55829422 | K57: =SUM(K53:K56) -> 63.15177357 | L57: =SUM(L53:L56) -> 62.66094123 | M57: =SUM(M53:M56) -> 62.08242473 | N57: =SUM(N53:N56) -> 64.1127167
B59: =SUM(C59:N59) -> 0 | D59: =D51-D57 -> 0 | E59: =E51-E57 -> 0 | F59: =F51-F57 -> 0 | G59: =G51-G57 -> 0 | H59: =H51-H57 -> 0 | I59: =I51-I57 -> 0 | J59: =J51-J57 -> 0 | K59: =K51-K57 -> 0 | L59: =L51-L57 -> 0 | M59: =M51-M57 -> 0 | N59: =N51-N57 -> 0
